Workbook

Sheet Orçamento
O3: UNIDADE ESCOLAR | X3: CÓDIGO INEP
O4: COLÉGIO ESTADUAL ARTUR DA COSTA E SILVA | X4: 52024164
A6: Nmax | O6: OBRA | S6: DATA | X6: CIDADE
A7: =MAX($C$18:$C$396) -> 4 | O7: REFORMA E AMPLIAÇÃO | S7: 2020-07-17 | X7: ITAGUARU
O9: CRE | R9: ENDEREÇO | S9: REFERÊNCIA AGETOP | X9: REFERÊNCIA SINAPI
O10: CRE-ITABERAI | R10: R SEBASTIAO RODRIGUES DA SILVA 807 , CENTRO , CEP:76660-000 | S10: ABR/19 | T10: DESONERADA | X10: ABR/20 | Y10: DESONERADA
O12: ÁREA EXISTENTE (M²) | R12: ÁREA A CONSTRUIR (M²) | S12: ÁREA A DEMOLIR (M²) | X12: ÁREA TOTAL CONSTRUÍDA (M²)
O13: 1610.19 | R13: 98.23 | X13: 1708.42
L15: FILTRO | O15: PLANILHA ORÇAMENTÁRIA
A16: Nível E | B16: Save Nivel | C16: Nível C | D16: Altura | E16: n1 | F16: n2 | G16: n3 | H16: n4 | I16: n5 | J16: Czero | K16: Cnível | L16: ↓ | M16: Nível | N16: Nível Corrigido | O16: ITEM | P16: TABELA | Q16: CODIGO | R16: DESCRIÇÃO DOS SERVIÇOS | S16: UNID | T16: QUANT | U16: REPET | V16: QUANT TOTAL | W16: MAT | X16: MO | Y16: T.SERVIÇO UNIT | Z16: VALOR TOTAL | AA16: OBSERVAÇÕES¹
A17: =CHOOSE(1+LOG(1+2*(ORÇAMENTO.Nivel="Nível 1")+4*(ORÇAMENTO.Nivel="Nível 2")+8*(ORÇAMENTO.Nivel="Nível 3")+16*(ORÇAMENTO.Nivel="Nível 4")+32*(ORÇAMENTO.Nivel="Serviço"),2),0,1,2,3,4,"S") -> S | B17: =IF(OR(C17="s",C17=0),OFFSET(B17,-1,0),C17) -> Save Nivel | C17: =IF(OFFSET(C17,-1,0)="L",1,IF(OFFSET(C17,-1,0)=1,2,IF(OR(A17="s",A17=0),"S",IF(AND(OFFSET(C17,-1,0)=2,A17=4),3,IF(AND(OR(OFFSET(C17,-1,0)="s",OFFSET(C17,-1,0)=0),A17<>"s",A17>OFFSET(B17,-1,0)),OFFSET(B17,-1,0),A17))))) -> S | D17: =IF(OR(C17="S",C17=0),0,IF(ISERROR(K17),J17,SMALL(J17:K17,1))) -> 0 | E17: =IF($C17=1,OFFSET(E17,-1,0)+1,OFFSET(E17,-1,0)) -> n1 | F17: =IF($C17=1,0,IF($C17=2,OFFSET(F17,-1,0)+1,OFFSET(F17,-1,0))) -> n2 | G17: =IF(AND($C17<=2,$C17<>0),0,IF($C17=3,OFFSET(G17,-1,0)+1,OFFSET(G17,-1,0))) -> n3 | H17: =IF(AND($C17<=3,$C17<>0),0,IF($C17=4,OFFSET(H17,-1,0)+1,OFFSET(H17,-1,0))) -> n4 | I17: =IF(AND($C17<=4,$C17<>0),0,IF(AND($C17="S",$Y17>0),OFFSET(I17,-1,0)+1,OFFSET(I17,-1,0))) -> n5 | J17: =IF(OR($C17="S",$C17=0),0,MATCH(0,OFFSET($D17,1,$C17,ROW($C$396)-ROW($C17)),0)) -> 0 | K17: =IF(OR($C17="S",$C17=0),0,MATCH(OFFSET($D17,0,$C17)+1,OFFSET($D17,1,$C17,ROW($C$396)-ROW($C17)),0)) -> 0 | M17: Serviço | N17: Serviço | O17: - | P17: SINAPI | R17: (sem código) | S17: - | U17: REPET | V17: - | W17: 0 | X17: 0 | Y17: 0 | Z17: -
A18: 0 | C18: L | D18: =COUNTA(OFFSET(D18,1,0):D$396) -> 377 | E18: =LEFT(O19,1)-1 -> 0 | L18: F | M18: LOTE | N18: LOTE | O18: REFORMA E AMPLIAÇÃO - COLÉGIO ESTADUAL ARTUR DA COSTA E SILVA | Z18: 0
A19: =CHOOSE(1+LOG(1+2*(ORÇAMENTO.Nivel="Nível 1")+4*(ORÇAMENTO.Nivel="Nível 2")+8*(ORÇAMENTO.Nivel="Nível 3")+16*(ORÇAMENTO.Nivel="Nível 4")+32*(ORÇAMENTO.Nivel="Serviço"),2),0,1,2,3,4,"S") -> 1 | B19: =IF(OR(C19="s",C19=0),OFFSET(B19,-1,0),C19) -> 1 | C19: =IF(OFFSET(C19,-1,0)="L",1,IF(OFFSET(C19,-1,0)=1,2,IF(OR(A19="s",A19=0),"S",IF(AND(OFFSET(C19,-1,0)=2,A19=4),3,IF(AND(OR(OFFSET(C19,-1,0)="s",OFFSET(C19,-1,0)=0),A19<>"s",A19>OFFSET(B19,-1,0)),OFFSET(B19,-1,0),A19))))) -> 1 | D19: =IF(OR(C19="S",C19=0),0,IF(ISERROR(K19),J19,SMALL(J19:K19,1))) -> 11 | E19: =IF($C19=1,OFFSET(E19,-1,0)+1,OFFSET(E19,-1,0)) -> 1 | F19: =IF($C19=1,0,IF($C19=2,OFFSET(F19,-1,0)+1,OFFSET(F19,-1,0))) -> 0 | G19: =IF(AND($C19<=2,$C19<>0),0,IF($C19=3,OFFSET(G19,-1,0)+1,OFFSET(G19,-1,0))) -> 0 | H19: =IF(AND($C19<=3,$C19<>0),0,IF($C19=4,OFFSET(H19,-1,0)+1,OFFSET(H19,-1,0))) -> 0 | I19: =IF(AND($C19<=4,$C19<>0),0,IF(AND($C19="S",$Y19>0),OFFSET(I19,-1,0)+1,OFFSET(I19,-1,0))) -> 0 | J19: =IF(OR($C19="S",$C19=0),0,MATCH(0,OFFSET($D19,1,$C19,ROW($C$396)-ROW($C19)),0)) -> 377 | K19: =IF(OR($C19="S",$C19=0),0,MATCH(OFFSET($D19,0,$C19)+1,OFFSET($D19,1,$C19,ROW($C$396)-ROW($C19)),0)) -> 11 | L19: F | M19: Nível 1 | N19: Nível 1 | O19: 1. | P19: AGETOP | R19: ADAPTAÇÃO BANHEIRO | S19: UN | T19: 1 | U19: 1 | V19: 1 | Y19: 0 | Z19: 0
A20: 2 | B20: 2 | C20: 2 | D20: 3 | E20: 1 | F20: 1 | G20: 0 | H20: 0 | I20: 0 | J20: 10 | K20: 3 | M20: Nível 2 | N20: Nível 2 | O20: - | P20: SINAPI | R20: SERVIÇOS PRELIMINARES | S20: - | U20: 1 | V20: - | W20: 0 | X20: 0 | Y20: 0 | Z20: 0
A21: S | B21: 2 | C21: S | D21: 0 | E21: 1 | F21: 1 | G21: 0 | H21: 0 | I21: 0 | J21: 0 | K21: 0 | M21: Serviço | N21: Serviço | O21: - | P21: SINAPI | Q21: 97644 | R21: REMOÇÃO DE PORTAS, DE FORMA MANUAL, SEM REAPROVEITAMENTO. AF_12/2017 | S21: M2 | T21: 3.36 | U21: 1 | V21: 3.36 | Y21: 0 | Z21: 0 | AA21: Referência: AGETOP - 20106
A22: S | B22: 2 | C22: S | D22: 0 | E22: 1 | F22: 1 | G22: 0 | H22: 0 | I22: 0 | J22: 0 | K22: 0 | M22: Serviço | N22: Serviço | O22: - | P22: AGETOP | Q22: 20163 | R22: DEMOLIÇÃO DAS INSTALAÇÕES HIDROSANITÁRIAS E AFINS C/ TRANSP. ATÉ CB. E CARGA | S22: H | T22: 2 | U22: 1 | V22: 2 | Y22: 0 | Z22: 0
A23: 2 | B23: 2 | C23: 2 | D23: 3 | E23: 1 | F23: 2 | G23: 0 | H23: 0 | I23: 0 | J23: 7 | K23: 3 | M23: Nível 2 | N23: Nível 2 | O23: - | P23: SINAPI | R23: TRANSPORTES | S23: - | U23: 1 | V23: - | Y23: 0 | Z23: 0
A24: S | B24: 2 | C24: S | D24: 0 | E24: 1 | F24: 2 | G24: 0 | H24: 0 | I24: 0 | J24: 0 | K24: 0 | M24: Serviço | N24: Serviço | O24: - | P24: SINAPI | Q24: 72900 | R24: TRANSPORTE DE ENTULHO COM CAMINHAO BASCULANTE 6 M3, RODOVIA PAVIMENTADA, DMT 0,5 A 1,0 KM | S24: M3 | T24: 0.16 | U24: 1 | V24: 0.16 | Y24: 0 | Z24: 0
A25: S | B25: 2 | C25: S | D25: 0 | E25: 1 | F25: 2 | G25: 0 | H25: 0 | I25: 0 | J25: 0 | K25: 0 | M25: Serviço | N25: Serviço | O25: - | P25: SINAPI | Q25: 72897 | R25: CARGA MANUAL DE ENTULHO EM CAMINHAO BASCULANTE 6 M3 | S25: M3 | T25: 0.16 | U25: 1 | V25: 0.16 | Y25: 0 | Z25: 0
A26: 2 | B26: 2 | C26: 2 | D26: 2 | E26: 1 | F26: 3 | G26: 0 | H26: 0 | I26: 0 | J26: 4 | K26: 2 | M26: Nível 2 | N26: Nível 2 | O26: - | P26: SINAPI | R26: ESQUADRIAS METÁLICAS | S26: - | U26: 1 | V26: - | Y26: 0 | Z26: 0
A27: S | B27: 2 | C27: S | D27: 0 | E27: 1 | F27: 3 | G27: 0 | H27: 0 | I27: 0 | J27: 0 | K27: 0 | M27: Serviço | N27: Serviço | O27: - | P27: AGETOP | Q27: 180501 | R27: PORTA DE ABRIR EM CHAPA PF-1 C/FERRAGENS | S27: m2 | T27: 3.36 | U27: 1 | V27: 3.36 | Y27: 0 | Z27: 0
A28: 2 | B28: 2 | C28: 2 | D28: 2 | E28: 1 | F28: 4 | G28: 0 | H28: 0 | I28: 0 | J28: 2 | K28: 60 | M28: Nível 2 | N28: Nível 2 | O28: - | P28: SINAPI | R28: PINTURA | S28: - | U28: 1 | V28: - | Y28: 0 | Z28: 0
A29: S | B29: 2 | C29: S | D29: 0 | E29: 1 | F29: 4 | G29: 0 | H29: 0 | I29: 0 | J29: 0 | K29: 0 | M29: Serviço | N29: Serviço | O29: - | P29: AGETOP | Q29: 261602 | R29: PINT.ESMALTE/ESQUAD.FERRO C/FUNDO ANTICOR. | S29: m2 | T29: 10.08 | U29: 1 | V29: 10.08 | Y29: 0 | Z29: 0
A30: 1 | B30: 1 | C30: 1 | D30: 11 | E30: 2 | F30: 0 | G30: 0 | H30: 0 | I30: 0 | J30: 366 | K30: 11 | L30: F | M30: Nível 1 | N30: Nível 1 | O30: 2. | P30: SINAPI | R30: IMPLANTAÇÃO BLOCO VESTIÁRIO | S30: UN | T30: 1 | U30: 1 | V30: 1 | Y30: 0 | Z30: 0
A31: 2 | B31: 2 | C31: 2 | D31: 8 | E31: 2 | F31: 1 | G31: 0 | H31: 0 | I31: 0 | J31: 10 | K31: 8 | M31: Nível 2 | N31: Nível 2 | O31: - | P31: SINAPI | R31: SERVIÇO EM TERRA | S31: - | U31: 1 | V31: - | Y31: 0 | Z31: 0
A32: S | B32: 2 | C32: S | D32: 0 | E32: 2 | F32: 1 | G32: 0 | H32: 0 | I32: 0 | J32: 0 | K32: 0 | M32: Serviço | N32: Serviço | O32: - | P32: AGETOP | Q32: 41140 | R32: REGULARIZAÇÃO DO TERRENO SEM APILOAMENTO COM TRANSPORTE MANUAL DA TERRA ESCAVADA | S32: m2 | T32: 301.55 | U32: 1 | V32: 301.55 | Y32: 0 | Z32: 0
A33: S | B33: 2 | C33: S | D33: 0 | E33: 2 | F33: 1 | G33: 0 | H33: 0 | I33: 0 | J33: 0 | K33: 0 | M33: Serviço | N33: Serviço | O33: - | P33: AGETOP | Q33: 41004 | R33: ESCAVACAO MECANICA | S33: m3 | T33: 9.125 | U33: 1 | V33: 9.125 | Y33: 0 | Z33: 0
A34: S | B34: 2 | C34: S | D34: 0 | E34: 2 | F34: 1 | G34: 0 | H34: 0 | I34: 0 | J34: 0 | K34: 0 | M34: Serviço | N34: Serviço | O34: - | P34: AGETOP | Q34: 41005 | R34: CARGA MECANIZADA | S34: m3 | T34: 9.125 | U34: 1 | V34: 9.125 | Y34: 0 | Z34: 0
A35: S | B35: 2 | C35: S | D35: 0 | E35: 2 | F35: 1 | G35: 0 | H35: 0 | I35: 0 | J35: 0 | K35: 0 | M35: Serviço | N35: Serviço | O35: - | P35: AGETOP | Q35: 41012 | R35: INDENIZAÇÃO DE JAZIDA | S35: m3 | T35: 9.125 | U35: 1 | V35: 9.125 | Y35: 0 | Z35: 0
A36: S | B36: 2 | C36: S | D36: 0 | E36: 2 | F36: 1 | G36: 0 | H36: 0 | I36: 0 | J36: 0 | K36: 0 | M36: Serviço | N36: Serviço | O36: - | P36: AGETOP | Q36: 41006 | R36: TRANSPORTE DE MATERIAL ESCAVADO M3.KM | S36: m3km | T36: 91.25 | U36: 1 | V36: 91.25 | Y36: 0 | Z36: 0
A37: S | B37: 2 | C37: S | D37: 0 | E37: 2 | F37: 1 | G37: 0 | H37: 0 | I37: 0 | J37: 0 | K37: 0 | M37: Serviço | N37: Serviço | O37: - | P37: AGETOP | Q37: 41009 | R37: COMPACTAÇÃO MECÂNICA SEM CONTROLE LABORATÓRIO | S37: m3 | T37: 7.3 | U37: 1 | V37: 7.3 | Y37: 0 | Z37: 0
A38: S | B38: 2 | C38: S | D38: 0 | E38: 2 | F38: 1 | G38: 0 | H38: 0 | I38: 0 | J38: 0 | K38: 0 | M38: Serviço | N38: Serviço | O38: - | P38: AGETOP | Q38: 41002 | R38: APILOAMENTO | S38: m2 | T38: 73 | U38: 1 | V38: 73 | Y38: 0 | Z38: 0
A39: 2 | B39: 2 | C39: 2 | D39: 2 | E39: 2 | F39: 2 | G39: 0 | H39: 0 | I39: 0 | J39: 2 | K39: 8 | M39: Nível 2 | N39: Nível 2 | O39: - | P39: SINAPI | R39: REVESTIMENTO DE PISO | S39: - | U39: 1 | V39: - | Y39: 0 | Z39: 0
A40: S | B40: 2 | C40: S | D40: 0 | E40: 2 | F40: 2 | G40: 0 | H40: 0 | I40: 0 | J40: 0 | K40: 0 | M40: Serviço | N40: Serviço | O40: - | P40: AGETOP | Q40: 220102 | R40: PISO CONCRETO DESEMPENADO ESPESSURA = 5 CM 1:2,5:3,5 | S40: m2 | T40: 225.65 | U40: 1 | V40: 225.65 | Y40: 0 | Z40: 0
A41: 1 | B41: 1 | C41: 1 | D41: 181 | E41: 3 | F41: 0 | G41: 0 | H41: 0 | I41: 0 | J41: 355 | K41: 181 | L41: F | M41: Nível 1 | N41: Nível 1 | O41: 3. | P41: SINAPI | R41: VESTIÁRIO PADRÃO SEC XXI | S41: UN | T41: 1 | U41: 1 | V41: 1 | Y41: 0 | Z41: 0
A42: 2 | B42: 2 | C42: 2 | D42: 2 | E42: 3 | F42: 1 | G42: 0 | H42: 0 | I42: 0 | J42: 180 | K42: 2 | M42: Nível 2 | N42: Nível 2 | O42: - | P42: SINAPI | R42: SERVIÇOS PRELIMINARES | S42: - | U42: 1 | V42: - | Y42: 0 | Z42: 0
A43: S | B43: 2 | C43: S | D43: 0 | E43: 3 | F43: 1 | G43: 0 | H43: 0 | I43: 0 | J43: 0 | K43: 0 | M43: Serviço | N43: Serviço | O43: - | P43: AGETOP | Q43: 20701 | R43: LOCAÇÃO DA OBRA, EXECUÇÃO DE GABARITO SEM REAPROVEITAMENTO, INCLUSO PINTURA (FACE INTERNA DO RIPÃO 15CM) E PIQUETE COM TESTEMUNHA | S43: m2 | T43: 55.24 | U43: 1 | V43: 55.24 | Y43: 0 | Z43: 0
A44: =CHOOSE(1+LOG(1+2*(ORÇAMENTO.Nivel="Nível 1")+4*(ORÇAMENTO.Nivel="Nível 2")+8*(ORÇAMENTO.Nivel="Nível 3")+16*(ORÇAMENTO.Nivel="Nível 4")+32*(ORÇAMENTO.Nivel="Serviço"),2),0,1,2,3,4,"S") -> 2 | B44: =IF(OR(C44="s",C44=0),OFFSET(B44,-1,0),C44) -> 2 | C44: =IF(OFFSET(C44,-1,0)="L",1,IF(OFFSET(C44,-1,0)=1,2,IF(OR(A44="s",A44=0),"S",IF(AND(OFFSET(C44,-1,0)=2,A44=4),3,IF(AND(OR(OFFSET(C44,-1,0)="s",OFFSET(C44,-1,0)=0),A44<>"s",A44>OFFSET(B44,-1,0)),OFFSET(B44,-1,0),A44))))) -> 2 | D44: =IF(OR(C44="S",C44=0),0,IF(ISERROR(K44),J44,SMALL(J44:K44,1))) -> 3 | E44: =IF($C44=1,OFFSET(E44,-1,0)+1,OFFSET(E44,-1,0)) -> 3 | F44: =IF($C44=1,0,IF($C44=2,OFFSET(F44,-1,0)+1,OFFSET(F44,-1,0))) -> 2 | G44: =IF(AND($C44<=2,$C44<>0),0,IF($C44=3,OFFSET(G44,-1,0)+1,OFFSET(G44,-1,0))) -> 0 | H44: =IF(AND($C44<=3,$C44<>0),0,IF($C44=4,OFFSET(H44,-1,0)+1,OFFSET(H44,-1,0))) -> 0 | I44: =IF(AND($C44<=4,$C44<>0),0,IF(AND($C44="S",$Y44>0),OFFSET(I44,-1,0)+1,OFFSET(I44,-1,0))) -> 0 | J44: 178 | K44: 3 | M44: Nível 2 | N44: Nível 2 | O44: - | R44: TRANSPORTES | S44: - | U44: 1 | V44: - | Y44: 0 | Z44: 0
A45: S | B45: 2 | C45: S | D45: 0 | E45: 3 | F45: 2 | G45: 0 | H45: 0 | I45: 0 | J45: 0 | K45: 0 | M45: Serviço | N45: Serviço | O45: - | P45: SINAPI | Q45: 72900 | R45: TRANSPORTE DE ENTULHO COM CAMINHAO BASCULANTE 6 M3, RODOVIA PAVIMENTADA, DMT 0,5 A 1,0 KM | S45: M3 | T45: 3.87 | U45: 1 | V45: 3.87 | Y45: 0 | Z45: 0
A46: S | B46: 2 | C46: S | D46: 0 | E46: 3 | F46: 2 | G46: 0 | H46: 0 | I46: 0 | J46: 0 | K46: 0 | M46: Serviço | N46: Serviço | O46: - | P46: SINAPI | Q46: 72897 | R46: CARGA MANUAL DE ENTULHO EM CAMINHAO BASCULANTE 6 M3 | S46: M3 | T46: 3.87 | U46: 1 | V46: 3.87 | Y46: 0 | Z46: 0
A47: 2 | B47: 2 | C47: 2 | D47: 22 | E47: 3 | F47: 3 | G47: 0 | H47: 0 | I47: 0 | J47: 175 | K47: 22 | M47: Nível 2 | N47: Nível 2 | O47: - | R47: FUNDAÇÕES E SONDAGENS | S47: - | U47: 1 | V47: - | Y47: 0 | Z47: 0
A48: 3 | B48: 3 | C48: 3 | D48: 10 | E48: 3 | F48: 3 | G48: 1 | H48: 0 | I48: 0 | J48: 21 | K48: 10 | M48: Nível 3 | N48: Nível 3 | O48: - | P48: SINAPI | R48: ESTACAS E BLOCOS | S48: - | U48: 1 | V48: - | Y48: 0 | Z48: 0
A49: S | B49: 3 | C49: S | D49: 0 | E49: 3 | F49: 3 | G49: 1 | H49: 0 | I49: 0 | J49: 0 | K49: 0 | M49: Serviço | N49: Serviço | O49: - | P49: SINAPI | Q49: 98230 | R49: ESTACA BROCA DE CONCRETO, DIÂMETRO DE 30 CM, PROFUNDIDADE DE ATÉ 3 M, ESCAVAÇÃO MANUAL COM TRADO CONCHA, NÃO ARMADA. AF_03/2018 | S49: M | T49: 69.5 | U49: 1 | V49: 69.5 | Y49: 0 | Z49: 0 | AA49: Referência: AGETOP - 50302
A50: S | B50: 3 | C50: S | D50: 0 | E50: 3 | F50: 3 | G50: 1 | H50: 0 | I50: 0 | J50: 0 | K50: 0 | M50: Serviço | N50: Serviço | O50: - | P50: SINAPI | Q50: 96522 | R50: ESCAVAÇÃO MANUAL PARA BLOCO DE COROAMENTO OU SAPATA, SEM PREVISÃO DE FÔRMA. AF_06/2017 | S50: M3 | T50: 4.08 | U50: 1 | V50: 4.08 | Y50: 0 | Z50: 0 | AA50: Referência: AGETOP - 50901
A51: S | B51: 3 | C51: S | D51: 0 | E51: 3 | F51: 3 | G51: 1 | H51: 0 | I51: 0 | J51: 0 | K51: 0 | M51: Serviço | N51: Serviço | O51: - | P51: SINAPI | Q51: 93382 | R51: REATERRO MANUAL DE VALAS COM COMPACTAÇÃO MECANIZADA. AF_04/2016 | S51: M3 | T51: 1.98 | U51: 1 | V51: 1.98 | Y51: 0 | Z51: 0 | AA51: Referência: AGETOP - 40904
A52: S | B52: 3 | C52: S | D52: 0 | E52: 3 | F52: 3 | G52: 1 | H52: 0 | I52: 0 | J52: 0 | K52: 0 | M52: Serviço | N52: Serviço | O52: - | P52: SINAPI | Q52: 94964 | R52: CONCRETO FCK = 20MPA, TRAÇO 1:2,7:3 (CIMENTO/ AREIA MÉDIA/ BRITA 1) - PREPARO MECÂNICO COM BETONEIRA 400 L. AF_07/2016 | S52: M3 | T52: 2.1 | U52: 1 | V52: 2.1 | Y52: 0 | Z52: 0
A53: S | B53: 3 | C53: S | D53: 0 | E53: 3 | F53: 3 | G53: 1 | H53: 0 | I53: 0 | J53: 0 | K53: 0 | M53: Serviço | N53: Serviço | O53: - | P53: AGETOP | Q53: 51026 | R53: LANÇAMENTO/APLICAÇÃO/ADENSAMENTO DE CONCRETO EM FUNDAÇÃO- (O.C.) | S53: m3 | T53: 2.1 | U53: 1 | V53: 2.1 | Y53: 0 | Z53: 0
A54: S | B54: 3 | C54: S | D54: 0 | E54: 3 | F54: 3 | G54: 1 | H54: 0 | I54: 0 | J54: 0 | K54: 0 | M54: Serviço | N54: Serviço | O54: - | P54: SINAPI | Q54: 94103 | R54: LASTRO DE VALA COM PREPARO DE FUNDO, LARGURA MENOR QUE 1,5 M, COM CAMADA DE BRITA, LANÇAMENTO MANUAL, EM LOCAL COM NÍVEL BAIXO DE INTERFERÊNCIA. AF_06/2016 | S54: M3 | T54: 3.5 | U54: 1 | V54: 3.5 | Y54: 0 | Z54: 0 | AA54: Referência: AGETOP - 60470
A55: S | B55: 3 | C55: S | D55: 0 | E55: 3 | F55: 3 | G55: 1 | H55: 0 | I55: 0 | J55: 0 | K55: 0 | M55: Serviço | N55: Serviço | O55: - | P55: SINAPI | Q55: 96545 | R55: ARMAÇÃO DE BLOCO, VIGA BALDRAME OU SAPATA UTILIZANDO AÇO CA-50 DE 8 MM - MONTAGEM. AF_06/2017 | S55: KG | T55: 43.51 | U55: 1 | V55: 43.51 | Y55: 0 | Z55: 0 | AA55: Referência: AGETOP - 52004
A56: S | B56: 3 | C56: S | D56: 0 | E56: 3 | F56: 3 | G56: 1 | H56: 0 | I56: 0 | J56: 0 | K56: 0 | M56: Serviço | N56: Serviço | O56: - | P56: SINAPI | Q56: 96546 | R56: ARMAÇÃO DE BLOCO, VIGA BALDRAME OU SAPATA UTILIZANDO AÇO CA-50 DE 10 MM - MONTAGEM. AF_06/2017 | S56: KG | T56: 24.99 | U56: 1 | V56: 24.99 | Y56: 0 | Z56: 0 | AA56: Referência: AGETOP - 52005
A57: S | B57: 3 | C57: S | D57: 0 | E57: 3 | F57: 3 | G57: 1 | H57: 0 | I57: 0 | J57: 0 | K57: 0 | M57: Serviço | N57: Serviço | O57: - | P57: SINAPI | Q57: 96543 | R57: ARMAÇÃO DE BLOCO, VIGA BALDRAME E SAPATA UTILIZANDO AÇO CA-60 DE 5 MM - MONTAGEM. AF_06/2017 | S57: KG | T57: 36.79 | U57: 1 | V57: 36.79 | Y57: 0 | Z57: 0 | AA57: Referência: AGETOP - 52014
A58: 3 | B58: 3 | C58: 3 | D58: 11 | E58: 3 | F58: 3 | G58: 2 | H58: 0 | I58: 0 | J58: 11 | K58: 28 | M58: Nível 3 | N58: Nível 3 | O58: - | P58: SINAPI | R58: VIGAS BALDRAMES | S58: - | U58: 1 | V58: - | Y58: 0 | Z58: 0
A59: S | B59: 3 | C59: S | D59: 0 | E59: 3 | F59: 3 | G59: 2 | H59: 0 | I59: 0 | J59: 0 | K59: 0 | M59: Serviço | N59: Serviço | O59: - | P59: SINAPI | Q59: 96527 | R59: ESCAVAÇÃO MANUAL DE VALA PARA VIGA BALDRAME, COM PREVISÃO DE FÔRMA. AF_06/2017 | S59: M3 | T59: 5.68 | U59: 1 | V59: 5.68 | Y59: 0 | Z59: 0 | AA59: Referência: AGETOP - 40101
A60: S | B60: 3 | C60: S | D60: 0 | E60: 3 | F60: 3 | G60: 2 | H60: 0 | I60: 0 | J60: 0 | K60: 0 | M60: Serviço | N60: Serviço | O60: - | P60: SINAPI | Q60: 94103 | R60: LASTRO DE VALA COM PREPARO DE FUNDO, LARGURA MENOR QUE 1,5 M, COM CAMADA DE BRITA, LANÇAMENTO MANUAL, EM LOCAL COM NÍVEL BAIXO DE INTERFERÊNCIA. AF_06/2016 | S60: M3 | T60: 0.41 | U60: 1 | V60: 0.41 | Y60: 0 | Z60: 0 | AA60: Referência: AGETOP - 60470
A61: S | B61: 3 | C61: S | D61: 0 | E61: 3 | F61: 3 | G61: 2 | H61: 0 | I61: 0 | J61: 0 | K61: 0 | M61: Serviço | N61: Serviço | O61: - | P61: SINAPI | Q61: 96995 | R61: REATERRO MANUAL APILOADO COM SOQUETE. AF_10/2017 | S61: M3 | T61: 4.05 | U61: 1 | V61: 4.05 | Y61: 0 | Z61: 0 | AA61: Referência: AGETOP - 40902
A62: S | B62: 3 | C62: S | D62: 0 | E62: 3 | F62: 3 | G62: 2 | H62: 0 | I62: 0 | J62: 0 | K62: 0 | M62: Serviço | N62: Serviço | O62: - | P62: AGETOP | Q62: 60191 | R62: FORMA DE TABUA CINTA BALDRAME U=8 VEZES | S62: m2 | T62: 27.02 | U62: 1 | V62: 27.02 | Y62: 0 | Z62: 0
A63: S | B63: 3 | C63: S | D63: 0 | E63: 3 | F63: 3 | G63: 2 | H63: 0 | I63: 0 | J63: 0 | K63: 0 | M63: Serviço | N63: Serviço | O63: - | P63: SINAPI | Q63: 94964 | R63: CONCRETO FCK = 20MPA, TRAÇO 1:2,7:3 (CIMENTO/ AREIA MÉDIA/ BRITA 1) - PREPARO MECÂNICO COM BETONEIRA 400 L. AF_07/2016 | S63: M3 | T63: 1.62 | U63: 1 | V63: 1.62 | Y63: 0 | Z63: 0
A64: S | B64: 3 | C64: S | D64: 0 | E64: 3 | F64: 3 | G64: 2 | H64: 0 | I64: 0 | J64: 0 | K64: 0 | M64: Serviço | N64: Serviço | O64: - | P64: SINAPI | Q64: 92873 | R64: LANÇAMENTO COM USO DE BALDES, ADENSAMENTO E ACABAMENTO DE CONCRETO EM ESTRUTURAS. AF_12/2015 | S64: M3 | T64: 1.62 | U64: 1 | V64: 1.62 | Y64: 0 | Z64: 0 | AA64: Referência: AGETOP - 60801
A65: S | B65: 3 | C65: S | D65: 0 | E65: 3 | F65: 3 | G65: 2 | H65: 0 | I65: 0 | J65: 0 | K65: 0 | M65: Serviço | N65: Serviço | O65: - | P65: SINAPI | Q65: 96544 | R65: ARMAÇÃO DE BLOCO, VIGA BALDRAME OU SAPATA UTILIZANDO AÇO CA-50 DE 6,3 MM - MONTAGEM. AF_06/2017 | S65: KG | T65: 49.29 | U65: 1 | V65: 49.29 | Y65: 0 | Z65: 0 | AA65: Referência: AGETOP - 52003
A66: S | B66: 3 | C66: S | D66: 0 | E66: 3 | F66: 3 | G66: 2 | H66: 0 | I66: 0 | J66: 0 | K66: 0 | M66: Serviço | N66: Serviço | O66: - | P66: SINAPI | Q66: 96545 | R66: ARMAÇÃO DE BLOCO, VIGA BALDRAME OU SAPATA UTILIZANDO AÇO CA-50 DE 8 MM - MONTAGEM. AF_06/2017 | S66: KG | T66: 30.49 | U66: 1 | V66: 30.49 | Y66: 0 | Z66: 0 | AA66: Referência: AGETOP - 52004
A67: S | B67: 3 | C67: S | D67: 0 | E67: 3 | F67: 3 | G67: 2 | H67: 0 | I67: 0 | J67: 0 | K67: 0 | M67: Serviço | N67: Serviço | O67: - | P67: SINAPI | Q67: 96546 | R67: ARMAÇÃO DE BLOCO, VIGA BALDRAME OU SAPATA UTILIZANDO AÇO CA-50 DE 10 MM - MONTAGEM. AF_06/2017 | S67: KG | T67: 12.15 | U67: 1 | V67: 12.15 | Y67: 0 | Z67: 0 | AA67: Referência: AGETOP - 52005
A68: S | B68: 3 | C68: S | D68: 0 | E68: 3 | F68: 3 | G68: 2 | H68: 0 | I68: 0 | J68: 0 | K68: 0 | M68: Serviço | N68: Serviço | O68: - | P68: SINAPI | Q68: 96543 | R68: ARMAÇÃO DE BLOCO, VIGA BALDRAME E SAPATA UTILIZANDO AÇO CA-60 DE 5 MM - MONTAGEM. AF_06/2017 | S68: KG | T68: 55.9 | U68: 1 | V68: 55.9 | Y68: 0 | Z68: 0 | AA68: Referência: AGETOP - 52014
A69: 2 | B69: 2 | C69: 2 | D69: 19 | E69: 3 | F69: 4 | G69: 0 | H69: 0 | I69: 0 | J69: 153 | K69: 19 | M69: Nível 2 | N69: Nível 2 | O69: - | R69: ESTRUTURA | S69: - | U69: 1 | V69: - | Y69: 0 | Z69: 0
A70: 3 | B70: 3 | C70: 3 | D70: 7 | E70: 3 | F70: 4 | G70: 1 | H70: 0 | I70: 0 | J70: 18 | K70: 7 | M70: Nível 3 | N70: Nível 3 | O70: - | P70: SINAPI | R70: PILARES | S70: - | U70: 1 | V70: - | Y70: 0 | Z70: 0
A71: S | B71: 3 | C71: S | D71: 0 | E71: 3 | F71: 4 | G71: 1 | H71: 0 | I71: 0 | J71: 0 | K71: 0 | M71: Serviço | N71: Serviço | O71: - | P71: SINAPI | Q71: 92418 | R71: MONTAGEM E DESMONTAGEM DE FÔRMA DE PILARES RETANGULARES E ESTRUTURAS SIMILARES COM ÁREA MÉDIA DAS SEÇÕES MENOR OU IGUAL A 0,25 M², PÉ-DIREITO SIMPLES, EM CHAPA DE MADEIRA COMPENSADA RESINADA, 4 UTILIZAÇÕES. AF_12/2015 | S71: M2 | T71: 18.14 | U71: 1 | V71: 18.14 | Y71: 0 | Z71: 0 | AA71: Referência: AGETOP - 60209
A72: S | B72: 3 | C72: S | D72: 0 | E72: 3 | F72: 4 | G72: 1 | H72: 0 | I72: 0 | J72: 0 | K72: 0 | M72: Serviço | N72: Serviço | O72: - | P72: SINAPI | Q72: 94964 | R72: CONCRETO FCK = 20MPA, TRAÇO 1:2,7:3 (CIMENTO/ AREIA MÉDIA/ BRITA 1) - PREPARO MECÂNICO COM BETONEIRA 400 L. AF_07/2016 | S72: M3 | T72: 0.73 | U72: 1 | V72: 0.73 | Y72: 0 | Z72: 0
A73: S | B73: 3 | C73: S | D73: 0 | E73: 3 | F73: 4 | G73: 1 | H73: 0 | I73: 0 | J73: 0 | K73: 0 | M73: Serviço | N73: Serviço | O73: - | P73: SINAPI | Q73: 92873 | R73: LANÇAMENTO COM USO DE BALDES, ADENSAMENTO E ACABAMENTO DE CONCRETO EM ESTRUTURAS. AF_12/2015 | S73: M3 | T73: 0.73 | U73: 1 | V73: 0.73 | Y73: 0 | Z73: 0 | AA73: Referência: AGETOP - 60801
A74: S | B74: 3 | C74: S | D74: 0 | E74: 3 | F74: 4 | G74: 1 | H74: 0 | I74: 0 | J74: 0 | K74: 0 | M74: Serviço | N74: Serviço | O74: - | P74: SINAPI | Q74: 92777 | R74: ARMAÇÃO DE PILAR OU VIGA DE UMA ESTRUTURA CONVENCIONAL DE CONCRETO ARMADO EM UMA EDIFICAÇÃO TÉRREA OU SOBRADO UTILIZANDO AÇO CA-50 DE 8,0 MM - MONTAGEM. AF_12/2015 | S74: KG | T74: 24.49 | U74: 1 | V74: 24.49 | Y74: 0 | Z74: 0 | AA74: Referência: AGETOP - 60304
A75: S | B75: 3 | C75: S | D75: 0 | E75: 3 | F75: 4 | G75: 1 | H75: 0 | I75: 0 | J75: 0 | K75: 0 | M75: Serviço | N75: Serviço | O75: - | P75: SINAPI | Q75: 92778 | R75: ARMAÇÃO DE PILAR OU VIGA DE UMA ESTRUTURA CONVENCIONAL DE CONCRETO ARMADO EM UMA EDIFICAÇÃO TÉRREA OU SOBRADO UTILIZANDO AÇO CA-50 DE 10,0 MM - MONTAGEM. AF_12/2015 | S75: KG | T75: 87.29 | U75: 1 | V75: 87.29 | Y75: 0 | Z75: 0 | AA75: Referência: AGETOP - 60305
A76: =CHOOSE(1+LOG(1+2*(ORÇAMENTO.Nivel="Nível 1")+4*(ORÇAMENTO.Nivel="Nível 2")+8*(ORÇAMENTO.Nivel="Nível 3")+16*(ORÇAMENTO.Nivel="Nível 4")+32*(ORÇAMENTO.Nivel="Serviço"),2),0,1,2,3,4,"S") -> S | B76: 3 | C76: S | D76: 0 | E76: 3 | F76: 4 | G76: 1 | H76: 0 | I76: 0 | J76: 0 | K76: 0 | M76: Serviço | N76: Serviço | O76: - | P76: SINAPI | Q76: 92775 | R76: ARMAÇÃO DE PILAR OU VIGA DE UMA ESTRUTURA CONVENCIONAL DE CONCRETO ARMADO EM UMA EDIFICAÇÃO TÉRREA OU SOBRADO UTILIZANDO AÇO CA-60 DE 5,0 MM - MONTAGEM. AF_12/2015 | S76: KG | T76: 30.95 | U76: 1 | V76: 30.95 | Y76: 0 | Z76: 0 | AA76: Referência: AGETOP - 60314
A77: 3 | B77: 3 | C77: 3 | D77: 9 | E77: 3 | F77: 4 | G77: 2 | H77: 0 | I77: 0 | J77: 11 | K77: 9 | M77: Nível 3 | N77: Nível 3 | O77: - | P77: SINAPI | R77: VIGAS DE COBERTURA | S77: - | U77: 1 | V77: - | Y77: 0 | Z77: 0
A78: S | B78: 3 | C78: S | D78: 0 | E78: 3 | F78: 4 | G78: 2 | H78: 0 | I78: 0 | J78: 0 | K78: 0 | M78: Serviço | N78: Serviço | O78: - | P78: SINAPI | Q78: 92475 | R78: MONTAGEM E DESMONTAGEM DE FÔRMA DE VIGA, ESCORAMENTO COM GARFO DE MADEIRA, PÉ-DIREITO SIMPLES, EM CHAPA DE MADEIRA PLASTIFICADA, 14 UTILIZAÇÕES. AF_12/2015 | S78: M2 | T78: 35.13 | U78: 1 | V78: 35.13 | Y78: 0 | Z78: 0
A79: S | B79: 3 | C79: S | D79: 0 | E79: 3 | F79: 4 | G79: 2 | H79: 0 | I79: 0 | J79: 0 | K79: 0 | M79: Serviço | N79: Serviço | O79: - | P79: SINAPI | Q79: 94964 | R79: CONCRETO FCK = 20MPA, TRAÇO 1:2,7:3 (CIMENTO/ AREIA MÉDIA/ BRITA 1) - PREPARO MECÂNICO COM BETONEIRA 400 L. AF_07/2016 | S79: M3 | T79: 1.62 | U79: 1 | V79: 1.62 | Y79: 0 | Z79: 0
A80: S | B80: 3 | C80: S | D80: 0 | E80: 3 | F80: 4 | G80: 2 | H80: 0 | I80: 0 | J80: 0 | K80: 0 | M80: Serviço | N80: Serviço | O80: - | P80: SINAPI | Q80: 92873 | R80: LANÇAMENTO COM USO DE BALDES, ADENSAMENTO E ACABAMENTO DE CONCRETO EM ESTRUTURAS. AF_12/2015 | S80: M3 | T80: 1.62 | U80: 1 | V80: 1.62 | Y80: 0 | Z80: 0 | AA80: Referência: AGETOP - 60801
A81: S | B81: 3 | C81: S | D81: 0 | E81: 3 | F81: 4 | G81: 2 | H81: 0 | I81: 0 | J81: 0 | K81: 0 | M81: Serviço | N81: Serviço | O81: - | P81: SINAPI | Q81: 92776 | R81: ARMAÇÃO DE PILAR OU VIGA DE UMA ESTRUTURA CONVENCIONAL DE CONCRETO ARMADO EM UMA EDIFICAÇÃO TÉRREA OU SOBRADO UTILIZANDO AÇO CA-50 DE 6,3 MM - MONTAGEM. AF_12/2015 | S81: KG | T81: 30.09 | U81: 1 | V81: 30.09 | Y81: 0 | Z81: 0 | AA81: Referência: AGETOP - 60303
A82: S | B82: 3 | C82: S | D82: 0 | E82: 3 | F82: 4 | G82: 2 | H82: 0 | I82: 0 | J82: 0 | K82: 0 | M82: Serviço | N82: Serviço | O82: - | P82: SINAPI | Q82: 92777 | R82: ARMAÇÃO DE PILAR OU VIGA DE UMA ESTRUTURA CONVENCIONAL DE CONCRETO ARMADO EM UMA EDIFICAÇÃO TÉRREA OU SOBRADO UTILIZANDO AÇO CA-50 DE 8,0 MM - MONTAGEM. AF_12/2015 | S82: KG | T82: 4.49 | U82: 1 | V82: 4.49 | Y82: 0 | Z82: 0 | AA82: Referência: AGETOP - 60304
A83: S | B83: 3 | C83: S | D83: 0 | E83: 3 | F83: 4 | G83: 2 | H83: 0 | I83: 0 | J83: =IF(OR($C83="S",$C83=0),0,MATCH(0,OFFSET($D83,1,$C83,ROW($C$396)-ROW($C83)),0)) -> 0 | K83: =IF(OR($C83="S",$C83=0),0,MATCH(OFFSET($D83,0,$C83)+1,OFFSET($D83,1,$C83,ROW($C$396)-ROW($C83)),0)) -> 0 | M83: Serviço | N83: Serviço | O83: - | P83: SINAPI | Q83: 92778 | R83: ARMAÇÃO DE PILAR OU VIGA DE UMA ESTRUTURA CONVENCIONAL DE CONCRETO ARMADO EM UMA EDIFICAÇÃO TÉRREA OU SOBRADO UTILIZANDO AÇO CA-50 DE 10,0 MM - MONTAGEM. AF_12/2015 | S83: KG | T83: 51.33 | U83: 1 | V83: 51.33 | Y83: 0 | Z83: 0 | AA83: Referência: AGETOP - 60305
A84: S | B84: 3 | C84: S | D84: 0 | E84: 3 | F84: 4 | G84: 2 | H84: 0 | I84: 0 | J84: 0 | K84: 0 | M84: Serviço | N84: Serviço | O84: - | P84: SINAPI | Q84: 92779 | R84: ARMAÇÃO DE PILAR OU VIGA DE UMA ESTRUTURA CONVENCIONAL DE CONCRETO ARMADO EM UMA EDIFICAÇÃO TÉRREA OU SOBRADO UTILIZANDO AÇO CA-50 DE 12,5 MM - MONTAGEM. AF_12/2015 | S84: KG | T84: 36.59 | U84: 1 | V84: 36.59 | Y84: 0 | Z84: 0
A85: S | B85: 3 | C85: S | D85: 0 | E85: 3 | F85: 4 | G85: 2 | H85: 0 | I85: 0 | J85: 0 | K85: 0 | M85: Serviço | N85: Serviço | O85: - | P85: SINAPI | Q85: 92775 | R85: ARMAÇÃO DE PILAR OU VIGA DE UMA ESTRUTURA CONVENCIONAL DE CONCRETO ARMADO EM UMA EDIFICAÇÃO TÉRREA OU SOBRADO UTILIZANDO AÇO CA-60 DE 5,0 MM - MONTAGEM. AF_12/2015 | S85: KG | T85: 43.37 | U85: 1 | V85: 43.37 | Y85: 0 | Z85: 0 | AA85: Referência: AGETOP - 60314
A86: 3 | B86: 3 | C86: 3 | D86: 2 | E86: 3 | F86: 4 | G86: 3 | H86: 0 | I86: 0 | J86: 2 | K86: 284 | M86: Nível 3 | N86: Nível 3 | O86: - | P86: SINAPI | R86: LAJE | S86: - | U86: 1 | V86: - | Y86: 0 | Z86: 0
A87: S | B87: 3 | C87: S | D87: 0 | E87: 3 | F87: 4 | G87: 3 | H87: 0 | I87: 0 | J87: 0 | K87: 0 | M87: Serviço | N87: Serviço | O87: - | P87: SINAPI | Q87: 74202/1 | R87: LAJE PRE-MOLDADA P/FORRO, SOBRECARGA 100KG/M2, VAOS ATE 3,50M/E=8CM, C/LAJOTAS E CAP.C/CONC FCK=20MPA, 3CM, INTER-EIXO 38CM, C/ESCORAMENTO (REAPR.3X) E FERRAGEM NEGATIVA | S87: M2 | T87: 55.42 | U87: 1 | V87: 55.42 | Y87: 0 | Z87: 0 | AA87: Referência: AGETOP - 61101
A88: 2 | B88: 2 | C88: 2 | D88: 25 | E88: 3 | F88: 5 | G88: 0 | H88: 0 | I88: 0 | J88: 134 | K88: 25 | M88: Nível 2 | N88: Nível 2 | O88: - | R88: INSTALAÇÕES ELÉTRICAS | S88: - | U88: 1 | V88: - | Y88: 0 | Z88: 0
A89: S | B89: 2 | C89: S | D89: 0 | E89: 3 | F89: 5 | G89: 0 | H89: 0 | I89: 0 | J89: 0 | K89: 0 | M89: Serviço | N89: Serviço | O89: - | P89: SINAPI | Q89: 91173 | R89: FIXAÇÃO DE TUBOS VERTICAIS DE PPR DIÂMETROS MENORES OU IGUAIS A 40 MM COM ABRAÇADEIRA METÁLICA RÍGIDA TIPO D 1/2", FIXADA EM PERFILADO EM ALVENARIA. AF_05/2015 | S89: M | T89: 30 | U89: 1 | V89: 30 | Y89: 0 | Z89: 0
A90: S | B90: 2 | C90: S | D90: 0 | E90: 3 | F90: 5 | G90: 0 | H90: 0 | I90: 0 | J90: 0 | K90: 0 | M90: Serviço | N90: Serviço | O90: - | P90: SINAPI | Q90: 91168 | R90: FIXAÇÃO DE TUBOS HORIZONTAIS DE PPR DIÂMETROS MAIORES QUE 40 MM E MENORES OU IGUAIS A 75 MM COM ABRAÇADEIRA METÁLICA RÍGIDA TIPO D 1 1/2", FIXADA EM PERFILADO EM LAJE. AF_05/2015 | S90: M | T90: 18 | U90: 1 | V90: 18 | Y90: 0 | Z90: 0
A91: S | B91: 2 | C91: S | D91: 0 | E91: 3 | F91: 5 | G91: 0 | H91: 0 | I91: 0 | J91: 0 | K91: 0 | M91: Serviço | N91: Serviço | O91: - | P91: SINAPI | Q91: 91872 | R91: ELETRODUTO RÍGIDO ROSCÁVEL, PVC, DN 32 MM (1"), PARA CIRCUITOS TERMINAIS, INSTALADO EM PAREDE - FORNECIMENTO E INSTALAÇÃO. AF_12/2015 | S91: M | T91: 30 | U91: 1 | V91: 30 | Y91: 0 | Z91: 0 | AA91: Referência: AGETOP - 71202
A92: S | B92: 2 | C92: S | D92: 0 | E92: 3 | F92: 5 | G92: 0 | H92: 0 | I92: 0 | J92: 0 | K92: 0 | M92: Serviço | N92: Serviço | O92: - | P92: SINAPI | Q92: 91885 | R92: LUVA PARA ELETRODUTO, PVC, ROSCÁVEL, DN 32 MM (1"), PARA CIRCUITOS TERMINAIS, INSTALADA EM PAREDE - FORNECIMENTO E INSTALAÇÃO. AF_12/2015 | S92: UN | T92: 10 | U92: 1 | V92: 10 | Y92: 0 | Z92: 0 | AA92: Referência: AGETOP - 71742
A93: S | B93: 2 | C93: S | D93: 0 | E93: 3 | F93: 5 | G93: 0 | H93: 0 | I93: 0 | J93: 0 | K93: 0 | M93: Serviço | N93: Serviço | O93: - | P93: SINAPI | Q93: 93009 | R93: ELETRODUTO RÍGIDO ROSCÁVEL, PVC, DN 60 MM (2") - FORNECIMENTO E INSTALAÇÃO. AF_12/2015 | S93: M | T93: 20 | U93: 1 | V93: 20 | Y93: 0 | Z93: 0
A94: S | B94: 2 | C94: S | D94: 0 | E94: 3 | F94: 5 | G94: 0 | H94: 0 | I94: 0 | J94: 0 | K94: 0 | M94: Serviço | N94: Serviço | O94: - | P94: SINAPI | Q94: 93014 | R94: LUVA PARA ELETRODUTO, PVC, ROSCÁVEL, DN 60 MM (2") - FORNECIMENTO E INSTALAÇÃO. AF_12/2015 | S94: UN | T94: 6 | U94: 1 | V94: 6 | Y94: 0 | Z94: 0 | AA94: Referência: AGETOP - 71745
A95: S | B95: 2 | C95: S | D95: 0 | E95: 3 | F95: 5 | G95: 0 | H95: 0 | I95: 0 | J95: 0 | K95: 0 | M95: Serviço | N95: Serviço | O95: - | P95: SINAPI | Q95: 91905 | R95: CURVA 90 GRAUS PARA ELETRODUTO, PVC, ROSCÁVEL, DN 32 MM (1"), PARA CIRCUITOS TERMINAIS, INSTALADA EM LAJE - FORNECIMENTO E INSTALAÇÃO. AF_12/2015 | S95: UN | T95: 2 | U95: 1 | V95: 2 | Y95: 0 | Z95: 0 | AA95: Referência: AGETOP - 71142
A96: S | B96: 2 | C96: S | D96: 0 | E96: 3 | F96: 5 | G96: 0 | H96: 0 | I96: 0 | J96: 0 | K96: 0 | M96: Serviço | N96: Serviço | O96: - | P96: SINAPI | Q96: 93020 | R96: CURVA 90 GRAUS PARA ELETRODUTO, PVC, ROSCÁVEL, DN 60 MM (2") - FORNECIMENTO E INSTALAÇÃO. AF_12/2015 | S96: UN | T96: 2 | U96: 1 | V96: 2 | Y96: 0 | Z96: 0
A97: S | B97: 2 | C97: S | D97: 0 | E97: 3 | F97: 5 | G97: 0 | H97: 0 | I97: 0 | J97: 0 | K97: 0 | M97: Serviço | N97: Serviço | O97: - | P97: SINAPI | Q97: 91927 | R97: CABO DE COBRE FLEXÍVEL ISOLADO, 2,5 MM², ANTI-CHAMA 0,6/1,0 KV, PARA CIRCUITOS TERMINAIS - FORNECIMENTO E INSTALAÇÃO. AF_12/2015 | S97: M | T97: 150 | U97: 1 | V97: 150 | Y97: 0 | Z97: 0 | AA97: Referência: AGETOP - 70581
A98: S | B98: 2 | C98: S | D98: 0 | E98: 3 | F98: 5 | G98: 0 | H98: 0 | I98: 0 | J98: 0 | K98: 0 | M98: Serviço | N98: Serviço | O98: - | P98: SINAPI | Q98: 91931 | R98: CABO DE COBRE FLEXÍVEL ISOLADO, 6 MM², ANTI-CHAMA 0,6/1,0 KV, PARA CIRCUITOS TERMINAIS - FORNECIMENTO E INSTALAÇÃO. AF_12/2015 | S98: M | T98: 200 | U98: 1 | V98: 200 | Y98: 0 | Z98: 0 | AA98: Referência: AGETOP - 70583
A99: S | B99: 2 | C99: S | D99: 0 | E99: 3 | F99: 5 | G99: 0 | H99: 0 | I99: 0 | J99: 0 | K99: 0 | M99: Serviço | N99: Serviço | O99: - | P99: SINAPI | Q99: 97591 | R99: LUMINÁRIA TIPO PLAFON REDONDO COM VIDRO FOSCO, DE SOBREPOR, COM 2 LÂMPADAS FLUORESCENTES DE 15 W, SEM REATOR - FORNECIMENTO E INSTALAÇÃO. AF_02/2020 | S99: UN | T99: 8 | U99: 1 | V99: 8 | Y99: 0 | Z99: 0
A100: S | B100: 2 | C100: S | D100: 0 | E100: 3 | F100: 5 | G100: 0 | H100: 0 | I100: 0 | J100: 0 | K100: 0 | M100: Serviço | N100: Serviço | O100: - | P100: SINAPI | Q100: 91940 | R100: CAIXA RETANGULAR 4" X 2" MÉDIA (1,30 M DO PISO), PVC, INSTALADA EM PAREDE - FORNECIMENTO E INSTALAÇÃO. AF_12/2015 | S100: UN | T100: 12 | U100: 1 | V100: 12 | Y100: 0 | Z100: 0
A101: S | B101: 2 | C101: S | D101: 0 | E101: 3 | F101: 5 | G101: 0 | H101: 0 | I101: 0 | J101: 0 | K101: 0 | M101: Serviço | N101: Serviço | O101: - | P101: SINAPI | Q101: 83446 | R101: CAIXA DE PASSAGEM 30X30X40 COM TAMPA E DRENO BRITA | S101: UN | T101: 1 | U101: 1 | V101: 1 | Y101: 0 | Z101: 0
A102: S | B102: 2 | C102: S | D102: 0 | E102: 3 | F102: 5 | G102: 0 | H102: 0 | I102: 0 | J102: 0 | K102: 0 | M102: Serviço | N102: Serviço | O102: - | P102: SINAPI | Q102: 93654 | R102: DISJUNTOR MONOPOLAR TIPO DIN, CORRENTE NOMINAL DE 16A - FORNECIMENTO E INSTALAÇÃO. AF_04/2016 | S102: UN | T102: 1 | U102: 1 | V102: 1 | Y102: 0 | Z102: 0
A103: S | B103: 2 | C103: S | D103: 0 | E103: 3 | F103: 5 | G103: 0 | H103: 0 | I103: 0 | J103: 0 | K103: 0 | M103: Serviço | N103: Serviço | O103: - | P103: SINAPI | Q103: 93670 | R103: DISJUNTOR TRIPOLAR TIPO DIN, CORRENTE NOMINAL DE 25A - FORNECIMENTO E INSTALAÇÃO. AF_04/2016 | S103: UN | T103: 8 | U103: 1 | V103: 8 | Y103: 0 | Z103: 0 | AA103: Referência: AGETOP - 71173
A104: S | B104: 2 | C104: S | D104: 0 | E104: 3 | F104: 5 | G104: 0 | H104: 0 | I104: 0 | J104: 0 | K104: 0 | M104: Serviço | N104: Serviço | O104: - | P104: SINAPI | Q104: 93672 | R104: DISJUNTOR TRIPOLAR TIPO DIN, CORRENTE NOMINAL DE 40A - FORNECIMENTO E INSTALAÇÃO. AF_04/2016 | S104: UN | T104: 1 | U104: 1 | V104: 1 | Y104: 0 | Z104: 0 | AA104: Referência: AGETOP - 71174
A105: S | B105: 2 | C105: S | D105: 0 | E105: 3 | F105: 5 | G105: 0 | H105: 0 | I105: 0 | J105: 0 | K105: 0 | M105: Serviço | N105: Serviço | O105: - | P105: AGETOP | Q105: 71331 | R105: FITA ISOLANTE, ROLO DE 20,00 M | S105: Un | T105: 1 | U105: 1 | V105: 1 | Y105: 0 | Z105: 0
A106: S | B106: 2 | C106: S | D106: 0 | E106: 3 | F106: 5 | G106: 0 | H106: 0 | I106: 0 | J106: 0 | K106: 0 | M106: Serviço | N106: Serviço | O106: - | P106: AGETOP | Q106: 71321 | R106: FITA DE AUTO FUSAO, ROLO E 10,00 MM | S106: Un | T106: 1 | U106: 1 | V106: 1 | Y106: 0 | Z106: 0
A107: S | B107: 2 | C107: S | D107: 0 | E107: 3 | F107: 5 | G107: 0 | H107: 0 | I107: 0 | J107: 0 | K107: 0 | M107: Serviço | N107: Serviço | O107: - | P107: SINAPI | Q107: 97610 | R107: LÂMPADA COMPACTA DE LED 10 W, BASE E27 - FORNECIMENTO E INSTALAÇÃO. AF_02/2020 | S107: UN | T107: 16 | U107: 1 | V107: 16 | Y107: 0 | Z107: 0
A108: =CHOOSE(1+LOG(1+2*(ORÇAMENTO.Nivel="Nível 1")+4*(ORÇAMENTO.Nivel="Nível 2")+8*(ORÇAMENTO.Nivel="Nível 3")+16*(ORÇAMENTO.Nivel="Nível 4")+32*(ORÇAMENTO.Nivel="Serviço"),2),0,1,2,3,4,"S") -> S | B108: =IF(OR(C108="s",C108=0),OFFSET(B108,-1,0),C108) -> 2 | C108: =IF(OFFSET(C108,-1,0)="L",1,IF(OFFSET(C108,-1,0)=1,2,IF(OR(A108="s",A108=0),"S",IF(AND(OFFSET(C108,-1,0)=2,A108=4),3,IF(AND(OR(OFFSET(C108,-1,0)="s",OFFSET(C108,-1,0)=0),A108<>"s",A108>OFFSET(B108,-1,0)),OFFSET(B108,-1,0),A108))))) -> S | D108: =IF(OR(C108="S",C108=0),0,IF(ISERROR(K108),J108,SMALL(J108:K108,1))) -> 0 | E108: =IF($C108=1,OFFSET(E108,-1,0)+1,OFFSET(E108,-1,0)) -> 3 | F108: =IF($C108=1,0,IF($C108=2,OFFSET(F108,-1,0)+1,OFFSET(F108,-1,0))) -> 5 | G108: =IF(AND($C108<=2,$C108<>0),0,IF($C108=3,OFFSET(G108,-1,0)+1,OFFSET(G108,-1,0))) -> 0 | H108: =IF(AND($C108<=3,$C108<>0),0,IF($C108=4,OFFSET(H108,-1,0)+1,OFFSET(H108,-1,0))) -> 0 | I108: =IF(AND($C108<=4,$C108<>0),0,IF(AND($C108="S",$Y108>0),OFFSET(I108,-1,0)+1,OFFSET(I108,-1,0))) -> 0 | J108: 0 | K108: 0 | M108: Serviço | N108: Serviço | O108: - | P108: AGETOP | Q108: 71450 | R108: INTERRUPTOR DIFERENCIAL RESIDUAL (D.R.) BIPOLAR DE 25A-30mA | S108: Un | T108: 8 | U108: 1 | V108: 8 | Y108: 0 | Z108: 0
A109: S | B109: 2 | C109: S | D109: 0 | E109: 3 | F109: 5 | G109: 0 | H109: 0 | I109: 0 | J109: 0 | K109: 0 | M109: Serviço | N109: Serviço | O109: - | P109: SINAPI | Q109: 74131/4 | R109: QUADRO DE DISTRIBUICAO DE ENERGIA DE EMBUTIR, EM CHAPA METALICA, PARA 18 DISJUNTORES TERMOMAGNETICOS MONOPOLARES, COM BARRAMENTO TRIFASICO E NEUTRO, FORNECIMENTO E INSTALACAO | S109: UN | T109: 1 | U109: 1 | V109: 1 | Y109: 0 | Z109: 0
A110: S | B110: 2 | C110: S | D110: 0 | E110: 3 | F110: 5 | G110: 0 | H110: 0 | I110: 0 | J110: 0 | K110: 0 | M110: Serviço | N110: Serviço | O110: - | P110: SINAPI | Q110: 91996 | R110: TOMADA MÉDIA DE EMBUTIR (1 MÓDULO), 2P+T 10 A, INCLUINDO SUPORTE E PLACA - FORNECIMENTO E INSTALAÇÃO. AF_12/2015 | S110: UN | T110: 4 | U110: 1 | V110: 4 | Y110: 0 | Z110: 0 | AA110: Referência: AGETOP - 72578
A111: S | B111: 2 | C111: S | D111: 0 | E111: 3 | F111: 5 | G111: 0 | H111: 0 | I111: 0 | J111: 0 | K111: 0 | M111: Serviço | N111: Serviço | O111: - | P111: SINAPI | Q111: 91991 | R111: TOMADA ALTA DE EMBUTIR (1 MÓDULO), 2P+T 20 A, SEM SUPORTE E SEM PLACA - FORNECIMENTO E INSTALAÇÃO. AF_12/2015 | S111: UN | T111: 8 | U111: 1 | V111: 8 | Y111: 0 | Z111: 0
A112: S | B112: 2 | C112: S | D112: 0 | E112: 3 | F112: 5 | G112: 0 | H112: 0 | I112: 0 | J112: 0 | K112: 0 | M112: Serviço | N112: Serviço | O112: - | P112: SINAPI | Q112: 97599 | R112: LUMINÁRIA DE EMERGÊNCIA, COM 30 LÂMPADAS LED DE 2 W, SEM REATOR - FORNECIMENTO E INSTALAÇÃO. AF_02/2020 | S112: UN | T112: 2 | U112: 1 | V112: 2 | Y112: 0 | Z112: 0
A113: 2 | B113: 2 | C113: 2 | D113: 67 | E113: 3 | F113: 6 | G113: 0 | H113: 0 | I113: 0 | J113: 109 | K113: 67 | M113: Nível 2 | N113: Nível 2 | O113: - | R113: INSTALAÇÕES HIDROSSANITÁRIAS | S113: - | U113: 1 | V113: - | Y113: 0 | Z113: 0
A114: S | B114: 2 | C114: S | D114: 0 | E114: 3 | F114: 6 | G114: 0 | H114: 0 | I114: 0 | J114: 0 | K114: 0 | M114: Serviço | N114: Serviço | O114: - | P114: SINAPI | Q114: 95470 | R114: VASO SANITARIO SIFONADO CONVENCIONAL COM LOUÇA BRANCA, INCLUSO CONJUNTO DE LIGAÇÃO PARA BACIA SANITÁRIA AJUSTÁVEL - FORNECIMENTO E INSTALAÇÃO. AF_10/2016 | S114: UN | T114: 4 | U114: 1 | V114: 4 | Y114: 0 | Z114: 0
A115: S | B115: 2 | C115: S | D115: 0 | E115: 3 | F115: 6 | G115: 0 | H115: 0 | I115: 0 | J115: 0 | K115: 0 | M115: Serviço | N115: Serviço | O115: - | P115: SINAPI | Q115: 99635 | R115: VÁLVULA DE DESCARGA METÁLICA, BASE 1 1/2 ", ACABAMENTO METALICO CROMADO - FORNECIMENTO E INSTALAÇÃO. AF_01/2019 | S115: UN | T115: 4 | U115: 1 | V115: 4 | Y115: 0 | Z115: 0 | AA115: Referência: AGETOP - 80515
A116: S | B116: 2 | C116: S | D116: 0 | E116: 3 | F116: 6 | G116: 0 | H116: 0 | I116: 0 | J116: 0 | K116: 0 | M116: Serviço | N116: Serviço | O116: - | P116: AGETOP | Q116: 80526 | R116: ASSENTO EM POLIPROPILENO COM SISTEMA DE FECHAMENTO SUAVE PARA VASO SANITÁRIO | S116: Un | T116: 4 | U116: 1 | V116: 4 | Y116: 0 | Z116: 0
A117: S | B117: 2 | C117: S | D117: 0 | E117: 3 | F117: 6 | G117: 0 | H117: 0 | I117: 0 | J117: 0 | K117: 0 | M117: Serviço | N117: Serviço | O117: - | P117: SINAPI | Q117: 95544 | R117: PAPELEIRA DE PAREDE EM METAL CROMADO SEM TAMPA, INCLUSO FIXAÇÃO. AF_01/2020 | S117: UN | T117: 4 | U117: 1 | V117: 4 | Y117: 0 | Z117: 0
A118: S | B118: 2 | C118: S | D118: 0 | E118: 3 | F118: 6 | G118: 0 | H118: 0 | I118: 0 | J118: 0 | K118: 0 | M118: Serviço | N118: Serviço | O118: - | P118: SINAPI | Q118: 86884 | R118: ENGATE FLEXÍVEL EM PLÁSTICO BRANCO, 1/2 X 30CM - FORNECIMENTO E INSTALAÇÃO. AF_01/2020 | S118: UN | T118: 8 | U118: 1 | V118: 8 | Y118: 0 | Z118: 0
A119: S | B119: 2 | C119: S | D119: 0 | E119: 3 | F119: 6 | G119: 0 | H119: 0 | I119: 0 | J119: 0 | K119: 0 | M119: Serviço | N119: Serviço | O119: - | P119: SINAPI | Q119: 86903 | R119: LAVATÓRIO LOUÇA BRANCA COM COLUNA, 45 X 55CM OU EQUIVALENTE, PADRÃO MÉDIO - FORNECIMENTO E INSTALAÇÃO. AF_01/2020 | S119: UN | T119: 6 | U119: 1 | V119: 6 | Y119: 0 | Z119: 0 | AA119: Referência: AGETOP - 80541
A120: S | B120: 2 | C120: S | D120: 0 | E120: 3 | F120: 6 | G120: 0 | H120: 0 | I120: 0 | J120: 0 | K120: 0 | M120: Serviço | N120: Serviço | O120: - | P120: AGETOP | Q120: 80550 | R120: FIXACAO P/LAVATORIO (PAR) | S120: PAR | T120: 6 | U120: 1 | V120: 6 | Y120: 0 | Z120: 0
A121: S | B121: 2 | C121: S | D121: 0 | E121: 3 | F121: 6 | G121: 0 | H121: 0 | I121: 0 | J121: 0 | K121: 0 | M121: Serviço | N121: Serviço | O121: - | P121: SINAPI | Q121: 86906 | R121: TORNEIRA CROMADA DE MESA, 1/2 OU 3/4, PARA LAVATÓRIO, PADRÃO POPULAR - FORNECIMENTO E INSTALAÇÃO. AF_01/2020 | S121: UN | T121: 8 | U121: 1 | V121: 8 | Y121: 0 | Z121: 0
A122: S | B122: 2 | C122: S | D122: 0 | E122: 3 | F122: 6 | G122: 0 | H122: 0 | I122: 0 | J122: 0 | K122: 0 | M122: Serviço | N122: Serviço | O122: - | P122: SINAPI | Q122: 86883 | R122: SIFÃO DO TIPO FLEXÍVEL EM PVC 1 X 1.1/2 - FORNECIMENTO E INSTALAÇÃO. AF_01/2020 | S122: UN | T122: 8 | U122: 1 | V122: 8 | Y122: 0 | Z122: 0
A123: S | B123: 2 | C123: S | D123: 0 | E123: 3 | F123: 6 | G123: 0 | H123: 0 | I123: 0 | J123: 0 | K123: 0 | M123: Serviço | N123: Serviço | O123: - | P123: SINAPI | Q123: 86877 | R123: VÁLVULA EM METAL CROMADO 1.1/2 X 1.1/2 PARA TANQUE OU LAVATÓRIO, COM OU SEM LADRÃO - FORNECIMENTO E INSTALAÇÃO. AF_01/2020 | S123: UN | T123: 8 | U123: 1 | V123: 8 | Y123: 0 | Z123: 0 | AA123: Referência: AGETOP - 80580
A124: S | B124: 2 | C124: S | D124: 0 | E124: 3 | F124: 6 | G124: 0 | H124: 0 | I124: 0 | J124: 0 | K124: 0 | M124: Serviço | N124: Serviço | O124: - | P124: SINAPI | Q124: 86901 | R124: CUBA DE EMBUTIR OVAL EM LOUÇA BRANCA, 35 X 50CM OU EQUIVALENTE - FORNECIMENTO E INSTALAÇÃO. AF_01/2020 | S124: UN | T124: 2 | U124: 1 | V124: 2 | Y124: 0 | Z124: 0 | AA124: Referência: AGETOP - 80587
A125: S | B125: 2 | C125: S | D125: 0 | E125: 3 | F125: 6 | G125: 0 | H125: 0 | I125: 0 | J125: 0 | K125: 0 | M125: Serviço | N125: Serviço | O125: - | P125: AGETOP | Q125: 80601 | R125: MICTORIO DE LOUCA C/SIFAO INTEGRADO | S125: Un | T125: 2 | U125: 1 | V125: 2 | Y125: 0 | Z125: 0
A126: S | B126: 2 | C126: S | D126: 0 | E126: 3 | F126: 6 | G126: 0 | H126: 0 | I126: 0 | J126: 0 | K126: 0 | M126: Serviço | N126: Serviço | O126: - | P126: AGETOP | Q126: 81501 | R126: ADESIVO PLASTICO - FRASCO 850 G | S126: Un | T126: 8 | U126: 1 | V126: 8 | Y126: 0 | Z126: 0
A127: S | B127: 2 | C127: S | D127: 0 | E127: 3 | F127: 6 | G127: 0 | H127: 0 | I127: 0 | J127: 0 | K127: 0 | M127: Serviço | N127: Serviço | O127: - | P127: AGETOP | Q127: 80730 | R127: CABIDE TIPO GANCHO EM LOUÇA | S127: Un | T127: 8 | U127: 1 | V127: 8 | Y127: 0 | Z127: 0
A128: S | B128: 2 | C128: S | D128: 0 | E128: 3 | F128: 6 | G128: 0 | H128: 0 | I128: 0 | J128: 0 | K128: 0 | M128: Serviço | N128: Serviço | O128: - | P128: SINAPI | Q128: 95547 | R128: SABONETEIRA PLASTICA TIPO DISPENSER PARA SABONETE LIQUIDO COM RESERVATORIO 800 A 1500 ML, INCLUSO FIXAÇÃO. AF_01/2020 | S128: UN | T128: 8 | U128: 1 | V128: 8 | Y128: 0 | Z128: 0
A129: S | B129: 2 | C129: S | D129: 0 | E129: 3 | F129: 6 | G129: 0 | H129: 0 | I129: 0 | J129: 0 | K129: 0 | M129: Serviço | N129: Serviço | O129: - | P129: SINAPI | Q129: 89353 | R129: REGISTRO DE GAVETA BRUTO, LATÃO, ROSCÁVEL, 3/4", FORNECIDO E INSTALADO EM RAMAL DE ÁGUA. AF_12/2014 | S129: UN | T129: 9 | U129: 1 | V129: 9 | Y129: 0 | Z129: 0 | AA129: Referência: AGETOP - 80902
A130: S | B130: 2 | C130: S | D130: 0 | E130: 3 | F130: 6 | G130: 0 | H130: 0 | I130: 0 | J130: 0 | K130: 0 | M130: Serviço | N130: Serviço | O130: - | P130: AGETOP | Q130: 80927 | R130: REGISTRO DE GAVETA C/CANOPLA DIAMETRO 1" | S130: Un | T130: 2 | U130: 1 | V130: 2 | Y130: 0 | Z130: 0
A131: S | B131: 2 | C131: S | D131: 0 | E131: 3 | F131: 6 | G131: 0 | H131: 0 | I131: 0 | J131: 0 | K131: 0 | M131: Serviço | N131: Serviço | O131: - | P131: SINAPI | Q131: 89351 | R131: REGISTRO DE PRESSÃO BRUTO, LATÃO, ROSCÁVEL, 3/4, FORNECIDO E INSTALADO EM RAMAL DE ÁGUA. AF_12/2014 | S131: UN | T131: 8 | U131: 1 | V131: 8 | Y131: 0 | Z131: 0
A132: S | B132: 2 | C132: S | D132: 0 | E132: 3 | F132: 6 | G132: 0 | H132: 0 | I132: 0 | J132: 0 | K132: 0 | M132: Serviço | N132: Serviço | O132: - | P132: SINAPI | Q132: 89446 | R132: TUBO, PVC, SOLDÁVEL, DN 25MM, INSTALADO EM PRUMADA DE ÁGUA - FORNECIMENTO E INSTALAÇÃO. AF_12/2014 | S132: M | T132: 42 | U132: 1 | V132: 42 | Y132: 0 | Z132: 0
A133: S | B133: 2 | C133: S | D133: 0 | E133: 3 | F133: 6 | G133: 0 | H133: 0 | I133: 0 | J133: 0 | K133: 0 | M133: Serviço | N133: Serviço | O133: - | P133: SINAPI | Q133: 89447 | R133: TUBO, PVC, SOLDÁVEL, DN 32MM, INSTALADO EM PRUMADA DE ÁGUA - FORNECIMENTO E INSTALAÇÃO. AF_12/2014 | S133: M | T133: 15 | U133: 1 | V133: 15 | Y133: 0 | Z133: 0
A134: S | B134: 2 | C134: S | D134: 0 | E134: 3 | F134: 6 | G134: 0 | H134: 0 | I134: 0 | J134: 0 | K134: 0 | M134: Serviço | N134: Serviço | O134: - | P134: SINAPI | Q134: 89449 | R134: TUBO, PVC, SOLDÁVEL, DN 50MM, INSTALADO EM PRUMADA DE ÁGUA - FORNECIMENTO E INSTALAÇÃO. AF_12/2014 | S134: M | T134: 15 | U134: 1 | V134: 15 | Y134: 0 | Z134: 0
A135: S | B135: 2 | C135: S | D135: 0 | E135: 3 | F135: 6 | G135: 0 | H135: 0 | I135: 0 | J135: 0 | K135: 0 | M135: Serviço | N135: Serviço | O135: - | P135: SINAPI | Q135: 89450 | R135: TUBO, PVC, SOLDÁVEL, DN 60MM, INSTALADO EM PRUMADA DE ÁGUA - FORNECIMENTO E INSTALAÇÃO. AF_12/2014 | S135: M | T135: 72 | U135: 1 | V135: 72 | Y135: 0 | Z135: 0
A136: S | B136: 2 | C136: S | D136: 0 | E136: 3 | F136: 6 | G136: 0 | H136: 0 | I136: 0 | J136: 0 | K136: 0 | M136: Serviço | N136: Serviço | O136: - | P136: SINAPI | Q136: 94656 | R136: ADAPTADOR CURTO COM BOLSA E ROSCA PARA REGISTRO, PVC, SOLDÁVEL, DN 25 MM X 3/4 , INSTALADO EM RESERVAÇÃO DE ÁGUA DE EDIFICAÇÃO QUE POSSUA RESERVATÓRIO DE FIBRA/FIBROCIMENTO FORNECIMENTO E INSTALAÇÃO. AF_06/2016 | S136: UN | T136: 26 | U136: 1 | V136: 26 | Y136: 0 | Z136: 0 | AA136: Referência: AGETOP - 81066
A137: S | B137: 2 | C137: S | D137: 0 | E137: 3 | F137: 6 | G137: 0 | H137: 0 | I137: 0 | J137: 0 | K137: 0 | M137: Serviço | N137: Serviço | O137: - | P137: SINAPI | Q137: 89436 | R137: ADAPTADOR CURTO COM BOLSA E ROSCA PARA REGISTRO, PVC, SOLDÁVEL, DN 32MM X 1, INSTALADO EM RAMAL DE DISTRIBUIÇÃO DE ÁGUA - FORNECIMENTO E INSTALAÇÃO. AF_12/2014 | S137: UN | T137: 4 | U137: 1 | V137: 4 | Y137: 0 | Z137: 0 | AA137: Referência: AGETOP - 81067
A138: S | B138: 2 | C138: S | D138: 0 | E138: 3 | F138: 6 | G138: 0 | H138: 0 | I138: 0 | J138: 0 | K138: 0 | M138: Serviço | N138: Serviço | O138: - | P138: SINAPI | Q138: 89596 | R138: ADAPTADOR CURTO COM BOLSA E ROSCA PARA REGISTRO, PVC, SOLDÁVEL, DN 50MM X 1.1/2, INSTALADO EM PRUMADA DE ÁGUA - FORNECIMENTO E INSTALAÇÃO. AF_12/2014 | S138: UN | T138: 4 | U138: 1 | V138: 4 | Y138: 0 | Z138: 0 | AA138: Referência: AGETOP - 81069
A139: S | B139: 2 | C139: S | D139: 0 | E139: 3 | F139: 6 | G139: 0 | H139: 0 | I139: 0 | J139: 0 | K139: 0 | M139: Serviço | N139: Serviço | O139: - | P139: SINAPI | Q139: 94657 | R139: LUVA PVC, SOLDÁVEL, DN 25 MM, INSTALADA EM RESERVAÇÃO DE ÁGUA DE EDIFICAÇÃO QUE POSSUA RESERVATÓRIO DE FIBRA/FIBROCIMENTO FORNECIMENTO E INSTALAÇÃO. AF_06/2016 | S139: UN | T139: 4 | U139: 1 | V139: 4 | Y139: 0 | Z139: 0
A140: =CHOOSE(1+LOG(1+2*(ORÇAMENTO.Nivel="Nível 1")+4*(ORÇAMENTO.Nivel="Nível 2")+8*(ORÇAMENTO.Nivel="Nível 3")+16*(ORÇAMENTO.Nivel="Nível 4")+32*(ORÇAMENTO.Nivel="Serviço"),2),0,1,2,3,4,"S") -> S | B140: 2 | C140: S | D140: 0 | E140: 3 | F140: 6 | G140: 0 | H140: 0 | I140: 0 | J140: 0 | K140: 0 | M140: Serviço | N140: Serviço | O140: - | P140: AGETOP | Q140: 81162 | R140: BUCHA DE REDUCAO SOLD.CURTA 32 X 25 MM | S140: Un | T140: 3 | U140: 1 | V140: 3 | Y140: 0 | Z140: 0
A141: S | B141: 2 | C141: S | D141: 0 | E141: 3 | F141: 6 | G141: 0 | H141: 0 | I141: 0 | J141: 0 | K141: 0 | M141: Serviço | N141: Serviço | O141: - | P141: AGETOP | Q141: 81165 | R141: BUCHA DE REDUCAO SOLD. CURTA 60 X 50 mm | S141: Un | T141: 4 | U141: 1 | V141: 4 | Y141: 0 | Z141: 0
A142: S | B142: 2 | C142: S | D142: 0 | E142: 3 | F142: 6 | G142: 0 | H142: 0 | I142: 0 | J142: 0 | K142: 0 | M142: Serviço | N142: Serviço | O142: - | P142: AGETOP | Q142: 81179 | R142: BUCHA DE REDUCAO SOLDAVEL LONGA 50 X 25 mm | S142: Un | T142: 4 | U142: 1 | V142: 4 | Y142: 0 | Z142: 0
A143: S | B143: 2 | C143: S | D143: 0 | E143: 3 | F143: 6 | G143: 0 | H143: 0 | I143: 0 | J143: 0 | K143: 0 | M143: Serviço | N143: Serviço | O143: - | P143: AGETOP | Q143: 81180 | R143: BUCHA DE REDUCAO SOLDAVEL LONGA 50 X 32 mm | S143: Un | T143: 3 | U143: 1 | V143: 3 | Y143: 0 | Z143: 0
A144: S | B144: 2 | C144: S | D144: 0 | E144: 3 | F144: 6 | G144: 0 | H144: 0 | I144: 0 | J144: 0 | K144: 0 | M144: Serviço | N144: Serviço | O144: - | P144: SINAPI | Q144: 89362 | R144: JOELHO 90 GRAUS, PVC, SOLDÁVEL, DN 25MM, INSTALADO EM RAMAL OU SUB-RAMAL DE ÁGUA - FORNECIMENTO E INSTALAÇÃO. AF_12/2014 | S144: UN | T144: 28 | U144: 1 | V144: 28 | Y144: 0 | Z144: 0 | AA144: Referência: AGETOP - 81321
A145: S | B145: 2 | C145: S | D145: 0 | E145: 3 | F145: 6 | G145: 0 | H145: 0 | I145: 0 | J145: 0 | K145: 0 | M145: Serviço | N145: Serviço | O145: - | P145: SINAPI | Q145: 89367 | R145: JOELHO 90 GRAUS, PVC, SOLDÁVEL, DN 32MM, INSTALADO EM RAMAL OU SUB-RAMAL DE ÁGUA - FORNECIMENTO E INSTALAÇÃO. AF_12/2014 | S145: UN | T145: 6 | U145: 1 | V145: 6 | Y145: 0 | Z145: 0 | AA145: Referência: AGETOP - 81322
A146: S | B146: 2 | C146: S | D146: 0 | E146: 3 | F146: 6 | G146: 0 | H146: 0 | I146: 0 | J146: 0 | K146: 0 | M146: Serviço | N146: Serviço | O146: - | P146: SINAPI | Q146: 89501 | R146: JOELHO 90 GRAUS, PVC, SOLDÁVEL, DN 50MM, INSTALADO EM PRUMADA DE ÁGUA - FORNECIMENTO E INSTALAÇÃO. AF_12/2014 | S146: UN | T146: 9 | U146: 1 | V146: 9 | Y146: 0 | Z146: 0
A147: S | B147: 2 | C147: S | D147: 0 | E147: 3 | F147: 6 | G147: 0 | H147: 0 | I147: 0 | J147: =IF(OR($C147="S",$C147=0),0,MATCH(0,OFFSET($D147,1,$C147,ROW($C$396)-ROW($C147)),0)) -> 0 | K147: =IF(OR($C147="S",$C147=0),0,MATCH(OFFSET($D147,0,$C147)+1,OFFSET($D147,1,$C147,ROW($C$396)-ROW($C147)),0)) -> 0 | M147: Serviço | N147: Serviço | O147: - | P147: SINAPI | Q147: 89505 | R147: JOELHO 90 GRAUS, PVC, SOLDÁVEL, DN 60MM, INSTALADO EM PRUMADA DE ÁGUA - FORNECIMENTO E INSTALAÇÃO. AF_12/2014 | S147: UN | T147: 2 | U147: 1 | V147: 2 | Y147: 0 | Z147: 0 | AA147: Referência: AGETOP - 81325
A148: S | B148: 2 | C148: S | D148: 0 | E148: 3 | F148: 6 | G148: 0 | H148: 0 | I148: 0 | J148: 0 | K148: 0 | M148: Serviço | N148: Serviço | O148: - | P148: AGETOP | Q148: 81360 | R148: JOELHO RED.90 GRAUS SOLD.C/BUCHA LATAO 25X1/2" | S148: Un | T148: 16 | U148: 1 | V148: 16 | Y148: 0 | Z148: 0
A149: S | B149: 2 | C149: S | D149: 0 | E149: 3 | F149: 6 | G149: 0 | H149: 0 | I149: 0 | J149: 0 | K149: 0 | M149: Serviço | N149: Serviço | O149: - | P149: SINAPI | Q149: 89395 | R149: TE, PVC, SOLDÁVEL, DN 25MM, INSTALADO EM RAMAL OU SUB-RAMAL DE ÁGUA - FORNECIMENTO E INSTALAÇÃO. AF_12/2014 | S149: UN | T149: 1 | U149: 1 | V149: 1 | Y149: 0 | Z149: 0 | AA149: Referência: AGETOP - 81402
A150: S | B150: 2 | C150: S | D150: 0 | E150: 3 | F150: 6 | G150: 0 | H150: 0 | I150: 0 | J150: 0 | K150: 0 | M150: Serviço | N150: Serviço | O150: - | P150: SINAPI | Q150: 89398 | R150: TE, PVC, SOLDÁVEL, DN 32MM, INSTALADO EM RAMAL OU SUB-RAMAL DE ÁGUA - FORNECIMENTO E INSTALAÇÃO. AF_12/2014 | S150: UN | T150: 1 | U150: 1 | V150: 1 | Y150: 0 | Z150: 0 | AA150: Referência: AGETOP - 81403
A151: S | B151: 2 | C151: S | D151: 0 | E151: 3 | F151: 6 | G151: 0 | H151: 0 | I151: 0 | J151: 0 | K151: 0 | M151: Serviço | N151: Serviço | O151: - | P151: SINAPI | Q151: 89625 | R151: TE, PVC, SOLDÁVEL, DN 50MM, INSTALADO EM PRUMADA DE ÁGUA - FORNECIMENTO E INSTALAÇÃO. AF_12/2014 | S151: UN | T151: 4 | U151: 1 | V151: 4 | Y151: 0 | Z151: 0
A152: S | B152: 2 | C152: S | D152: 0 | E152: 3 | F152: 6 | G152: 0 | H152: 0 | I152: 0 | J152: 0 | K152: 0 | M152: Serviço | N152: Serviço | O152: - | P152: SINAPI | Q152: 89628 | R152: TE, PVC, SOLDÁVEL, DN 60MM, INSTALADO EM PRUMADA DE ÁGUA - FORNECIMENTO E INSTALAÇÃO. AF_12/2014 | S152: UN | T152: 5 | U152: 1 | V152: 5 | Y152: 0 | Z152: 0 | AA152: Referência: AGETOP - 81406
A153: S | B153: 2 | C153: S | D153: 0 | E153: 3 | F153: 6 | G153: 0 | H153: 0 | I153: 0 | J153: 0 | K153: 0 | M153: Serviço | N153: Serviço | O153: - | P153: AGETOP | Q153: 81445 | R153: TE RED.SOLD.90GR.BUC.LATAO BOLSA CENT.25X25X1/2" | S153: Un | T153: 6 | U153: 1 | V153: 6 | Y153: 0 | Z153: 0
A154: S | B154: 2 | C154: S | D154: 0 | E154: 3 | F154: 6 | G154: 0 | H154: 0 | I154: 0 | J154: 0 | K154: 0 | M154: Serviço | N154: Serviço | O154: - | P154: AGETOP | Q154: 81501 | R154: ADESIVO PLASTICO - FRASCO 850 G | S154: Un | T154: 1 | U154: 1 | V154: 1 | Y154: 0 | Z154: 0
A155: S | B155: 2 | C155: S | D155: 0 | E155: 3 | F155: 6 | G155: 0 | H155: 0 | I155: 0 | J155: 0 | K155: 0 | M155: Serviço | N155: Serviço | O155: - | P155: AGETOP | Q155: 81504 | R155: SOLUCAO LIMPADORA 1000 CM3 | S155: Un | T155: 1 | U155: 1 | V155: 1 | Y155: 0 | Z155: 0
A156: S | B156: 2 | C156: S | D156: 0 | E156: 3 | F156: 6 | G156: 0 | H156: 0 | I156: 0 | J156: 0 | K156: 0 | M156: Serviço | N156: Serviço | O156: - | P156: AGETOP | Q156: 81664 | R156: CORPO CX. SIFONADA DIAM. 150 X 185 X 75 | S156: Un | T156: 4 | U156: 1 | V156: 4 | Y156: 0 | Z156: 0
A157: S | B157: 2 | C157: S | D157: 0 | E157: 3 | F157: 6 | G157: 0 | H157: 0 | I157: 0 | J157: 0 | K157: 0 | M157: Serviço | N157: Serviço | O157: - | P157: SINAPI | Q157: 89710 | R157: RALO SECO, PVC, DN 100 X 40 MM, JUNTA SOLDÁVEL, FORNECIDO E INSTALADO EM RAMAL DE DESCARGA OU EM RAMAL DE ESGOTO SANITÁRIO. AF_12/2014 | S157: UN | T157: 6 | U157: 1 | V157: 6 | Y157: 0 | Z157: 0
A158: S | B158: 2 | C158: S | D158: 0 | E158: 3 | F158: 6 | G158: 0 | H158: 0 | I158: 0 | J158: 0 | K158: 0 | M158: Serviço | N158: Serviço | O158: - | P158: SINAPI | Q158: 94677 | R158: CURVA 90 GRAUS, PVC, SOLDÁVEL, DN 40 MM, INSTALADO EM RESERVAÇÃO DE ÁGUA DE EDIFICAÇÃO QUE POSSUA RESERVATÓRIO DE FIBRA/FIBROCIMENTO FORNECIMENTO E INSTALAÇÃO. AF_06/2016 | S158: UN | T158: 18 | U158: 1 | V158: 18 | Y158: 0 | Z158: 0
A159: S | B159: 2 | C159: S | D159: 0 | E159: 3 | F159: 6 | G159: 0 | H159: 0 | I159: 0 | J159: 0 | K159: 0 | M159: Serviço | N159: Serviço | O159: - | P159: SINAPI | Q159: 95694 | R159: CURVA 90 GRAUS, PVC, SERIE R, ÁGUA PLUVIAL, DN 100 MM, JUNTA ELÁSTICA, FORNECIDO E INSTALADO EM RAMAL DE ENCAMINHAMENTO. AF_12/2014 | S159: UN | T159: 4 | U159: 1 | V159: 4 | Y159: 0 | Z159: 0
A160: S | B160: 2 | C160: S | D160: 0 | E160: 3 | F160: 6 | G160: 0 | H160: 0 | I160: 0 | J160: 0 | K160: 0 | M160: Serviço | N160: Serviço | O160: - | P160: AGETOP | Q160: 81778 | R160: GRELHA QUADRADA CROMADA DIAM. 150 MM | S160: Un | T160: 4 | U160: 1 | V160: 4 | Y160: 0 | Z160: 0
A161: S | B161: 2 | C161: S | D161: 0 | E161: 3 | F161: 6 | G161: 0 | H161: 0 | I161: 0 | J161: 0 | K161: 0 | M161: Serviço | N161: Serviço | O161: - | P161: AGETOP | Q161: 81790 | R161: GRELHA REDONDA BRANCA DIAM. 100 MM | S161: Un | T161: 6 | U161: 1 | V161: 6 | Y161: 0 | Z161: 0
A162: S | B162: 2 | C162: S | D162: 0 | E162: 3 | F162: 6 | G162: 0 | H162: 0 | I162: 0 | J162: 0 | K162: 0 | M162: Serviço | N162: Serviço | O162: - | P162: AGETOP | Q162: 81825 | R162: CAIXA DE PASSAGEM 60 X 60 CM SEM TAMPA | S162: Un | T162: 2 | U162: 1 | V162: 2 | Y162: 0 | Z162: 0
A163: S | B163: 2 | C163: S | D163: 0 | E163: 3 | F163: 6 | G163: 0 | H163: 0 | I163: 0 | J163: 0 | K163: 0 | M163: Serviço | N163: Serviço | O163: - | P163: AGETOP | Q163: 81825 | R163: CAIXA DE PASSAGEM 60 X 60 CM SEM TAMPA | S163: Un | T163: 2 | U163: 1 | V163: 2 | Y163: 0 | Z163: 0
A164: S | B164: 2 | C164: S | D164: 0 | E164: 3 | F164: 6 | G164: 0 | H164: 0 | I164: 0 | J164: 0 | K164: 0 | M164: Serviço | N164: Serviço | O164: - | P164: AGETOP | Q164: 81885 | R164: TERMINAL DE VENTILACAO DIAMETRO 50 MM | S164: Un | T164: 2 | U164: 1 | V164: 2 | Y164: 0 | Z164: 0
A165: S | B165: 2 | C165: S | D165: 0 | E165: 3 | F165: 6 | G165: 0 | H165: 0 | I165: 0 | J165: 0 | K165: 0 | M165: Serviço | N165: Serviço | O165: - | P165: SINAPI | Q165: 94676 | R165: JOELHO 90 GRAUS, PVC, SOLDÁVEL, DN 40 MM INSTALADO EM RESERVAÇÃO DE ÁGUA DE EDIFICAÇÃO QUE POSSUA RESERVATÓRIO DE FIBRA/FIBROCIMENTO FORNECIMENTO E INSTALAÇÃO. AF_06/2016 | S165: UN | T165: 20 | U165: 1 | V165: 20 | Y165: 0 | Z165: 0 | AA165: Referência: AGETOP - 81323
A166: S | B166: 2 | C166: S | D166: 0 | E166: 3 | F166: 6 | G166: 0 | H166: 0 | I166: 0 | J166: 0 | K166: 0 | M166: Serviço | N166: Serviço | O166: - | P166: SINAPI | Q166: 94676 | R166: JOELHO 90 GRAUS, PVC, SOLDÁVEL, DN 40 MM INSTALADO EM RESERVAÇÃO DE ÁGUA DE EDIFICAÇÃO QUE POSSUA RESERVATÓRIO DE FIBRA/FIBROCIMENTO FORNECIMENTO E INSTALAÇÃO. AF_06/2016 | S166: UN | T166: 2 | U166: 1 | V166: 2 | Y166: 0 | Z166: 0 | AA166: Referência: AGETOP - 81323
A167: S | B167: 2 | C167: S | D167: 0 | E167: 3 | F167: 6 | G167: 0 | H167: 0 | I167: 0 | J167: 0 | K167: 0 | M167: Serviço | N167: Serviço | O167: - | P167: SINAPI | Q167: 89732 | R167: JOELHO 45 GRAUS, PVC, SERIE NORMAL, ESGOTO PREDIAL, DN 50 MM, JUNTA ELÁSTICA, FORNECIDO E INSTALADO EM RAMAL DE DESCARGA OU RAMAL DE ESGOTO SANITÁRIO. AF_12/2014 | S167: UN | T167: 2 | U167: 1 | V167: 2 | Y167: 0 | Z167: 0
A168: S | B168: 2 | C168: S | D168: 0 | E168: 3 | F168: 6 | G168: 0 | H168: 0 | I168: 0 | J168: 0 | K168: 0 | M168: Serviço | N168: Serviço | O168: - | P168: SINAPI | Q168: 89726 | R168: JOELHO 45 GRAUS, PVC, SERIE NORMAL, ESGOTO PREDIAL, DN 40 MM, JUNTA SOLDÁVEL, FORNECIDO E INSTALADO EM RAMAL DE DESCARGA OU RAMAL DE ESGOTO SANITÁRIO. AF_12/2014 | S168: UN | T168: 12 | U168: 1 | V168: 12 | Y168: 0 | Z168: 0
A169: S | B169: 2 | C169: S | D169: 0 | E169: 3 | F169: 6 | G169: 0 | H169: 0 | I169: 0 | J169: 0 | K169: 0 | M169: Serviço | N169: Serviço | O169: - | P169: SINAPI | Q169: 89731 | R169: JOELHO 90 GRAUS, PVC, SERIE NORMAL, ESGOTO PREDIAL, DN 50 MM, JUNTA ELÁSTICA, FORNECIDO E INSTALADO EM RAMAL DE DESCARGA OU RAMAL DE ESGOTO SANITÁRIO. AF_12/2014 | S169: UN | T169: 2 | U169: 1 | V169: 2 | Y169: 0 | Z169: 0
A170: S | B170: 2 | C170: S | D170: 0 | E170: 3 | F170: 6 | G170: 0 | H170: 0 | I170: 0 | J170: 0 | K170: 0 | M170: Serviço | N170: Serviço | O170: - | P170: SINAPI | Q170: 89744 | R170: JOELHO 90 GRAUS, PVC, SERIE NORMAL, ESGOTO PREDIAL, DN 100 MM, JUNTA ELÁSTICA, FORNECIDO E INSTALADO EM RAMAL DE DESCARGA OU RAMAL DE ESGOTO SANITÁRIO. AF_12/2014 | S170: UN | T170: 4 | U170: 1 | V170: 4 | Y170: 0 | Z170: 0 | AA170: Referência: AGETOP - 81938
A171: S | B171: 2 | C171: S | D171: 0 | E171: 3 | F171: 6 | G171: 0 | H171: 0 | I171: 0 | J171: 0 | K171: 0 | M171: Serviço | N171: Serviço | O171: - | P171: AGETOP | Q171: 82055 | R171: PORTA GRELHA QUADRADO P/GRELHA RED.CROM.DIAM.100 M | S171: Un | T171: 6 | U171: 1 | V171: 6 | Y171: 0 | Z171: 0
A172: =CHOOSE(1+LOG(1+2*(ORÇAMENTO.Nivel="Nível 1")+4*(ORÇAMENTO.Nivel="Nível 2")+8*(ORÇAMENTO.Nivel="Nível 3")+16*(ORÇAMENTO.Nivel="Nível 4")+32*(ORÇAMENTO.Nivel="Serviço"),2),0,1,2,3,4,"S") -> S | B172: =IF(OR(C172="s",C172=0),OFFSET(B172,-1,0),C172) -> 2 | C172: =IF(OFFSET(C172,-1,0)="L",1,IF(OFFSET(C172,-1,0)=1,2,IF(OR(A172="s",A172=0),"S",IF(AND(OFFSET(C172,-1,0)=2,A172=4),3,IF(AND(OR(OFFSET(C172,-1,0)="s",OFFSET(C172,-1,0)=0),A172<>"s",A172>OFFSET(B172,-1,0)),OFFSET(B172,-1,0),A172))))) -> S | D172: =IF(OR(C172="S",C172=0),0,IF(ISERROR(K172),J172,SMALL(J172:K172,1))) -> 0 | E172: =IF($C172=1,OFFSET(E172,-1,0)+1,OFFSET(E172,-1,0)) -> 3 | F172: =IF($C172=1,0,IF($C172=2,OFFSET(F172,-1,0)+1,OFFSET(F172,-1,0))) -> 6 | G172: =IF(AND($C172<=2,$C172<>0),0,IF($C172=3,OFFSET(G172,-1,0)+1,OFFSET(G172,-1,0))) -> 0 | H172: =IF(AND($C172<=3,$C172<>0),0,IF($C172=4,OFFSET(H172,-1,0)+1,OFFSET(H172,-1,0))) -> 0 | I172: =IF(AND($C172<=4,$C172<>0),0,IF(AND($C172="S",$Y172>0),OFFSET(I172,-1,0)+1,OFFSET(I172,-1,0))) -> 0 | J172: 0 | K172: 0 | M172: Serviço | N172: Serviço | O172: - | P172: AGETOP | Q172: 82052 | R172: PORTA GRELHA QUADRADO CROMADO DIAM.150 MM | S172: Un | T172: 4 | U172: 1 | V172: 4 | Y172: 0 | Z172: 0
A173: S | B173: 2 | C173: S | D173: 0 | E173: 3 | F173: 6 | G173: 0 | H173: 0 | I173: 0 | J173: 0 | K173: 0 | M173: Serviço | N173: Serviço | O173: - | P173: AGETOP | Q173: 82230 | R173: TE SANITARIO DIAMETRO 50 X 50 MM | S173: Un | T173: 6 | U173: 1 | V173: 6 | Y173: 0 | Z173: 0
A174: S | B174: 2 | C174: S | D174: 0 | E174: 3 | F174: 6 | G174: 0 | H174: 0 | I174: 0 | J174: 0 | K174: 0 | M174: Serviço | N174: Serviço | O174: - | P174: SINAPI | Q174: 89630 | R174: TE DE REDUÇÃO, PVC, SOLDÁVEL, DN 75MM X 50MM, INSTALADO EM PRUMADA DE ÁGUA - FORNECIMENTO E INSTALAÇÃO. AF_12/2014 | S174: UN | T174: 4 | U174: 1 | V174: 4 | Y174: 0 | Z174: 0 | AA174: Referência: AGETOP - 81427
A175: S | B175: 2 | C175: S | D175: 0 | E175: 3 | F175: 6 | G175: 0 | H175: 0 | I175: 0 | J175: 0 | K175: 0 | M175: Serviço | N175: Serviço | O175: - | P175: AGETOP | Q175: 82233 | R175: TE SANITARIO DIAMETRO 100 X 50 MM | S175: Un | T175: 4 | U175: 1 | V175: 4 | Y175: 0 | Z175: 0
A176: S | B176: 2 | C176: S | D176: 0 | E176: 3 | F176: 6 | G176: 0 | H176: 0 | I176: 0 | J176: 0 | K176: 0 | M176: Serviço | N176: Serviço | O176: - | P176: SINAPI | Q176: 89508 | R176: TUBO PVC, SÉRIE R, ÁGUA PLUVIAL, DN 40 MM, FORNECIDO E INSTALADO EM RAMAL DE ENCAMINHAMENTO. AF_12/2014 | S176: M | T176: 31 | U176: 1 | V176: 31 | Y176: 0 | Z176: 0
A177: S | B177: 2 | C177: S | D177: 0 | E177: 3 | F177: 6 | G177: 0 | H177: 0 | I177: 0 | J177: 0 | K177: 0 | M177: Serviço | N177: Serviço | O177: - | P177: SINAPI | Q177: 89509 | R177: TUBO PVC, SÉRIE R, ÁGUA PLUVIAL, DN 50 MM, FORNECIDO E INSTALADO EM RAMAL DE ENCAMINHAMENTO. AF_12/2014 | S177: M | T177: 18 | U177: 1 | V177: 18 | Y177: 0 | Z177: 0
A178: S | B178: 2 | C178: S | D178: 0 | E178: 3 | F178: 6 | G178: 0 | H178: 0 | I178: 0 | J178: 0 | K178: 0 | M178: Serviço | N178: Serviço | O178: - | P178: SINAPI | Q178: 89511 | R178: TUBO PVC, SÉRIE R, ÁGUA PLUVIAL, DN 75 MM, FORNECIDO E INSTALADO EM RAMAL DE ENCAMINHAMENTO. AF_12/2014 | S178: M | T178: 18 | U178: 1 | V178: 18 | Y178: 0 | Z178: 0
A179: S | B179: 2 | C179: S | D179: 0 | E179: 3 | F179: 6 | G179: 0 | H179: 0 | I179: 0 | J179: 0 | K179: 0 | M179: Serviço | N179: Serviço | O179: - | P179: SINAPI | Q179: 89512 | R179: TUBO PVC, SÉRIE R, ÁGUA PLUVIAL, DN 100 MM, FORNECIDO E INSTALADO EM RAMAL DE ENCAMINHAMENTO. AF_12/2014 | S179: M | T179: 38 | U179: 1 | V179: 38 | Y179: 0 | Z179: 0
A180: 2 | B180: 2 | C180: 2 | D180: 4 | E180: 3 | F180: 7 | G180: 0 | H180: 0 | I180: 0 | J180: 42 | K180: 4 | M180: Nível 2 | N180: Nível 2 | O180: - | P180: SINAPI | R180: ALVENARIAS E DIVISÓRIAS | S180: - | U180: 1 | V180: - | Y180: 0 | Z180: 0
A181: S | B181: 2 | C181: S | D181: 0 | E181: 3 | F181: 7 | G181: 0 | H181: 0 | I181: 0 | J181: 0 | K181: 0 | M181: Serviço | N181: Serviço | O181: - | P181: SINAPI | Q181: 87511 | R181: ALVENARIA DE VEDAÇÃO DE BLOCOS CERÂMICOS FURADOS NA HORIZONTAL DE 9X19X19CM (ESPESSURA 9CM) DE PAREDES COM ÁREA LÍQUIDA MENOR QUE 6M² COM VÃOS E ARGAMASSA DE ASSENTAMENTO COM PREPARO EM BETONEIRA. AF_06/2014 | S181: M2 | T181: 51.95 | U181: 1 | V181: 51.95 | Y181: 0 | Z181: 0 | AA181: Referência: AGETOP - 100201
A182: S | B182: 2 | C182: S | D182: 0 | E182: 3 | F182: 7 | G182: 0 | H182: 0 | I182: 0 | J182: 0 | K182: 0 | M182: Serviço | N182: Serviço | O182: - | P182: AGETOP | Q182: 100602 | R182: ALVENARIA DE TIJOLO LAMINADO 1/2 VEZ - ARG. (1CI : 1CH : 5ARML) | S182: m2 | T182: 64.94 | U182: 1 | V182: 64.94 | Y182: 0 | Z182: 0
A183: S | B183: 2 | C183: S | D183: 0 | E183: 3 | F183: 7 | G183: 0 | H183: 0 | I183: 0 | J183: 0 | K183: 0 | M183: Serviço | N183: Serviço | O183: - | P183: SINAPI | Q183: 79627 | R183: DIVISORIA EM GRANITO BRANCO POLIDO, ESP = 3CM, ASSENTADO COM ARGAMASSA TRACO 1:4, ARREMATE EM CIMENTO BRANCO, EXCLUSIVE FERRAGENS | S183: M2 | T183: 0.9 | U183: 1 | V183: 0.9 | Y183: 0 | Z183: 0 | AA183: Referência: AGETOP - 100320
A184: 2 | B184: 2 | C184: 2 | D184: 2 | E184: 3 | F184: 8 | G184: 0 | H184: 0 | I184: 0 | J184: 38 | K184: 2 | M184: Nível 2 | N184: Nível 2 | O184: - | P184: SINAPI | R184: IMPERMEABILIZAÇÃO | S184: - | U184: 1 | V184: - | Y184: 0 | Z184: 0
A185: S | B185: 2 | C185: S | D185: 0 | E185: 3 | F185: 8 | G185: 0 | H185: 0 | I185: 0 | J185: 0 | K185: 0 | M185: Serviço | N185: Serviço | O185: - | P185: SINAPI | Q185: 98557 | R185: IMPERMEABILIZAÇÃO DE SUPERFÍCIE COM EMULSÃO ASFÁLTICA, 2 DEMÃOS AF_06/2018 | S185: M2 | T185: 48 | U185: 1 | V185: 48 | Y185: 0 | Z185: 0
A186: 2 | B186: 2 | C186: 2 | D186: 2 | E186: 3 | F186: 9 | G186: 0 | H186: 0 | I186: 0 | J186: 36 | K186: 2 | M186: Nível 2 | N186: Nível 2 | O186: - | P186: AGETOP | R186: ESTRUTURA DE MADEIRA | S186: - | U186: 1 | V186: - | Y186: 0 | Z186: 0
A187: S | B187: 2 | C187: S | D187: 0 | E187: 3 | F187: 9 | G187: 0 | H187: 0 | I187: 0 | J187: 0 | K187: 0 | M187: Serviço | N187: Serviço | O187: - | P187: AGETOP | Q187: 140200 | R187: EST.MAD.TELHA FIBROCIM. COM APOIOS EM LAJES/VIGAS OU PAREDES(SOMENTE TERÇAS) C/FERRAGENS | S187: m2 | T187: 55.42 | U187: 1 | V187: 55.42 | Y187: 0 | Z187: 0
A188: 2 | B188: 2 | C188: 2 | D188: 4 | E188: 3 | F188: 10 | G188: 0 | H188: 0 | I188: 0 | J188: 34 | K188: 4 | M188: Nível 2 | N188: Nível 2 | O188: - | P188: AGETOP | R188: COBERTURAS | S188: - | U188: 1 | V188: - | Y188: 0 | Z188: 0
A189: S | B189: 2 | C189: S | D189: 0 | E189: 3 | F189: 10 | G189: 0 | H189: 0 | I189: 0 | J189: 0 | K189: 0 | M189: Serviço | N189: Serviço | O189: - | P189: SINAPI | Q189: 94210 | R189: TELHAMENTO COM TELHA ONDULADA DE FIBROCIMENTO E = 6 MM, COM RECOBRIMENTO LATERAL DE 1 1/4 DE ONDA PARA TELHADO COM INCLINAÇÃO MÁXIMA DE 10°, COM ATÉ 2 ÁGUAS, INCLUSO IÇAMENTO. AF_07/2019 | S189: M2 | T189: 55.42 | U189: 1 | V189: 55.42 | Y189: 0 | Z189: 0 | AA189: Referência: AGETOP - 160501
A190: S | B190: 2 | C190: S | D190: 0 | E190: 3 | F190: 10 | G190: 0 | H190: 0 | I190: 0 | J190: 0 | K190: 0 | M190: Serviço | N190: Serviço | O190: - | P190: SINAPI | Q190: 94228 | R190: CALHA EM CHAPA DE AÇO GALVANIZADO NÚMERO 24, DESENVOLVIMENTO DE 50 CM, INCLUSO TRANSPORTE VERTICAL. AF_07/2019 | S190: M | T190: 10.04 | U190: 1 | V190: 10.04 | Y190: 0 | Z190: 0 | AA190: Referência: AGETOP - 160601
A191: S | B191: 2 | C191: S | D191: 0 | E191: 3 | F191: 10 | G191: 0 | H191: 0 | I191: 0 | J191: 0 | K191: 0 | M191: Serviço | N191: Serviço | O191: - | P191: SINAPI | Q191: 94231 | R191: RUFO EM CHAPA DE AÇO GALVANIZADO NÚMERO 24, CORTE DE 25 CM, INCLUSO TRANSPORTE VERTICAL. AF_07/2019 | S191: M | T191: 29.52 | U191: 1 | V191: 29.52 | Y191: 0 | Z191: 0 | AA191: Referência: AGETOP - 160602
A192: 2 | B192: 2 | C192: 2 | D192: 4 | E192: 3 | F192: 11 | G192: 0 | H192: 0 | I192: 0 | J192: 30 | K192: 4 | M192: Nível 2 | N192: Nível 2 | O192: - | P192: AGETOP | R192: ESQUADRIAS METÁLICAS | S192: - | U192: 1 | V192: - | Y192: 0 | Z192: 0
A193: S | B193: 2 | C193: S | D193: 0 | E193: 3 | F193: 11 | G193: 0 | H193: 0 | I193: 0 | J193: 0 | K193: 0 | M193: Serviço | N193: Serviço | O193: - | P193: SINAPI | Q193: 94559 | R193: JANELA DE AÇO TIPO BASCULANTE PARA VIDROS, COM BATENTE, FERRAGENS E PINTURA ANTICORROSIVA. EXCLUSIVE VIDROS, ACABAMENTO, ALIZAR E CONTRAMARCO. FORNECIMENTO E INSTALAÇÃO. AF_12/2019 | S193: M2 | T193: 6.28 | U193: 1 | V193: 6.28 | Y193: 0 | Z193: 0 | AA193: Referência: AGETOP - 180404
A194: S | B194: 2 | C194: S | D194: 0 | E194: 3 | F194: 11 | G194: 0 | H194: 0 | I194: 0 | J194: 0 | K194: 0 | M194: Serviço | N194: Serviço | O194: - | P194: AGETOP | Q194: 180501 | R194: PORTA DE ABRIR EM CHAPA PF-1 C/FERRAGENS | S194: m2 | T194: 3.78 | U194: 1 | V194: 3.78 | Y194: 0 | Z194: 0
A195: S | B195: 2 | C195: S | D195: 0 | E195: 3 | F195: 11 | G195: 0 | H195: 0 | I195: 0 | J195: 0 | K195: 0 | M195: Serviço | N195: Serviço | O195: - | P195: AGETOP | Q195: 180501 | R195: PORTA DE ABRIR EM CHAPA PF-1 C/FERRAGENS | S195: m2 | T195: 10.24 | U195: 1 | V195: 10.24 | Y195: 0 | Z195: 0
A196: 2 | B196: 2 | C196: 2 | D196: 2 | E196: 3 | F196: 12 | G196: 0 | H196: 0 | I196: 0 | J196: 26 | K196: 2 | M196: Nível 2 | N196: Nível 2 | O196: - | P196: AGETOP | R196: VIDROS | S196: - | U196: 1 | V196: - | Y196: 0 | Z196: 0
A197: S | B197: 2 | C197: S | D197: 0 | E197: 3 | F197: 12 | G197: 0 | H197: 0 | I197: 0 | J197: 0 | K197: 0 | M197: Serviço | N197: Serviço | O197: - | P197: SINAPI | Q197: 72117 | R197: VIDRO LISO COMUM TRANSPARENTE, ESPESSURA 4MM | S197: M2 | T197: 5.34 | U197: 1 | V197: 5.34 | Y197: 0 | Z197: 0 | AA197: Referência: AGETOP - 190102
A198: 2 | B198: 2 | C198: 2 | D198: 5 | E198: 3 | F198: 13 | G198: 0 | H198: 0 | I198: 0 | J198: 24 | K198: 5 | M198: Nível 2 | N198: Nível 2 | O198: - | P198: AGETOP | R198: REVESTIMENTO DE PAREDE | S198: - | U198: 1 | V198: - | Y198: 0 | Z198: 0
A199: S | B199: 2 | C199: S | D199: 0 | E199: 3 | F199: 13 | G199: 0 | H199: 0 | I199: 0 | J199: 0 | K199: 0 | M199: Serviço | N199: Serviço | O199: - | P199: SINAPI | Q199: 87548 | R199: MASSA ÚNICA, PARA RECEBIMENTO DE PINTURA, EM ARGAMASSA TRAÇO 1:2:8, PREPARO MANUAL, APLICADA MANUALMENTE EM FACES INTERNAS DE PAREDES, ESPESSURA DE 10MM, COM EXECUÇÃO DE TALISCAS. AF_06/2014 | S199: M2 | T199: 54.58 | U199: 1 | V199: 54.58 | Y199: 0 | Z199: 0 | AA199: Referência: AGETOP - 200500
A200: S | B200: 2 | C200: S | D200: 0 | E200: 3 | F200: 13 | G200: 0 | H200: 0 | I200: 0 | J200: 0 | K200: 0 | M200: Serviço | N200: Serviço | O200: - | P200: SINAPI | Q200: 87273 | R200: REVESTIMENTO CERÂMICO PARA PAREDES INTERNAS COM PLACAS TIPO ESMALTADA EXTRA DE DIMENSÕES 33X45 CM APLICADAS EM AMBIENTES DE ÁREA MAIOR QUE 5 M² NA ALTURA INTEIRA DAS PAREDES. AF_06/2014 | S200: M2 | T200: 145.8 | U200: 1 | V200: 145.8 | Y200: 0 | Z200: 0
A201: S | B201: 2 | C201: S | D201: 0 | E201: 3 | F201: 13 | G201: 0 | H201: 0 | I201: 0 | J201: 0 | K201: 0 | M201: Serviço | N201: Serviço | O201: - | P201: SINAPI | Q201: 87549 | R201: EMBOÇO, PARA RECEBIMENTO DE CERÂMICA, EM ARGAMASSA TRAÇO 1:2:8, PREPARO MECÂNICO COM BETONEIRA 400L, APLICADO MANUALMENTE EM FACES INTERNAS DE PAREDES, PARA AMBIENTE COM ÁREA ENTRE 5M2 E 10M2, ESPESSURA DE 10MM, COM EXECUÇÃO DE TALISCAS. AF_06/2014 | S201: M2 | T201: 145.8 | U201: 1 | V201: 145.8 | Y201: 0 | Z201: 0 | AA201: Referência: AGETOP - 200201
A202: S | B202: 2 | C202: S | D202: 0 | E202: 3 | F202: 13 | G202: 0 | H202: 0 | I202: 0 | J202: 0 | K202: 0 | M202: Serviço | N202: Serviço | O202: - | P202: SINAPI | Q202: 87904 | R202: CHAPISCO APLICADO EM ALVENARIA (COM PRESENÇA DE VÃOS) E ESTRUTURAS DE CONCRETO DE FACHADA, COM COLHER DE PEDREIRO. ARGAMASSA TRAÇO 1:3 COM PREPARO MANUAL. AF_06/2014 | S202: M2 | T202: 200.38 | U202: 1 | V202: 200.38 | Y202: 0 | Z202: 0 | AA202: Referência: AGETOP - 200101
A203: 2 | B203: 2 | C203: 2 | D203: 3 | E203: 3 | F203: 14 | G203: 0 | H203: 0 | I203: 0 | J203: 19 | K203: 3 | M203: Nível 2 | N203: Nível 2 | O203: - | P203: AGETOP | R203: FORROS | S203: - | U203: 1 | V203: - | Y203: 0 | Z203: 0
A204: =CHOOSE(1+LOG(1+2*(ORÇAMENTO.Nivel="Nível 1")+4*(ORÇAMENTO.Nivel="Nível 2")+8*(ORÇAMENTO.Nivel="Nível 3")+16*(ORÇAMENTO.Nivel="Nível 4")+32*(ORÇAMENTO.Nivel="Serviço"),2),0,1,2,3,4,"S") -> S | B204: 2 | C204: S | D204: 0 | E204: 3 | F204: 14 | G204: 0 | H204: 0 | I204: 0 | J204: 0 | K204: 0 | M204: Serviço | N204: Serviço | O204: - | P204: SINAPI | Q204: 87414 | R204: APLICAÇÃO MANUAL DE GESSO DESEMPENADO (SEM TALISCAS) EM TETO DE AMBIENTES DE ÁREA MAIOR QUE 10M², ESPESSURA DE 1,0CM. AF_06/2014 | S204: M2 | T204: 55.42 | U204: 1 | V204: 55.42 | Y204: 0 | Z204: 0 | AA204: Referência: AGETOP - 210515
A205: S | B205: 2 | C205: S | D205: 0 | E205: 3 | F205: 14 | G205: 0 | H205: 0 | I205: 0 | J205: 0 | K205: 0 | M205: Serviço | N205: Serviço | O205: - | P205: SINAPI | Q205: 87884 | R205: CHAPISCO APLICADO NO TETO, COM ROLO PARA TEXTURA ACRÍLICA. ARGAMASSA INDUSTRIALIZADA COM PREPARO MANUAL. AF_06/2014 | S205: M2 | T205: 55.42 | U205: 1 | V205: 55.42 | Y205: 0 | Z205: 0 | AA205: Referência: AGETOP - 210102
A206: 2 | B206: 2 | C206: 2 | D206: 4 | E206: 3 | F206: 15 | G206: 0 | H206: 0 | I206: 0 | J206: 16 | K206: 4 | M206: Nível 2 | N206: Nível 2 | O206: - | P206: SINAPI | R206: REVESTIMENTO DE PISO | S206: - | U206: 1 | V206: - | Y206: 0 | Z206: 0
... 263 more rows

Sheet Resumo
B3: UNIDADE ESCOLAR | G3: CÓDIGO INEP
B4: =Orçamento!$O$4 -> COLÉGIO ESTADUAL ARTUR DA COSTA E SILVA | G4: =Orçamento!X4 -> 52024164
B6: OBRA | G6: CIDADE
B7: =Orçamento!$O$7 -> REFORMA E AMPLIAÇÃO | G7: =Orçamento!$X$7 -> ITAGUARU
B9: ENDEREÇO | G9: CRE
B10: =Orçamento!$R$10 -> R SEBASTIAO RODRIGUES DA SILVA 807 , CENTRO , CEP:76660-000 | G10: =Orçamento!$O$10 -> CRE-ITABERAI
B12: REFERÊNCIA | D12: DATA | G12: ÁREA TOTAL CONSTRUÍDA (M²)
B13: =CONCATENATE("AGETOP E SINAPI - ",Orçamento!$T$10) -> AGETOP E SINAPI - DESONERADA | D13: =Orçamento!$S$7 -> 2020-07-17 | G13: =Orçamento!$X$13 -> 1708.42
A14: FILTRO
B15: RESUMO GERAL DO ORÇAMENTO
A16: ↓ | B16: ITEM | C16: DESCRIÇÃO DOS SERVIÇOS | G16: PREÇO SEM BDI | H16: PREÇO COM BDI | I16: PARTICIP. (%)
A17: =IF(G17>0,"F","") ->  | B17: 1. | C17: =Orçamento!$P449 -> ADAPTAÇÃO BANHEIRO | G17: =IFERROR(Orçamento!S449,"-") -> 0 | H17: =IFERROR(Orçamento!X449,"") -> 0 | I17: =Orçamento!AA449 -> 
A18: =IF(G18>0,"F","") ->  | B18: 2. | C18: =Orçamento!$P450 -> IMPLANTAÇÃO BLOCO VESTIÁRIO | G18: =IFERROR(Orçamento!S450,"-") -> 0 | H18: =IFERROR(Orçamento!X450,"") -> 0 | I18: =Orçamento!AA450 -> 
B19: 3. | C19: =Orçamento!$P451 -> VESTIÁRIO PADRÃO SEC XXI | G19: =IFERROR(Orçamento!S451,"-") -> 0 | H19: =IFERROR(Orçamento!X451,"") -> 0 | I19: =Orçamento!AA451 -> 
B20: 4. | C20: =Orçamento!$P452 -> PISO TÁTIL | G20: =IFERROR(Orçamento!S452,"-") -> 0 | H20: =IFERROR(Orçamento!X452,"") -> 0 | I20: =Orçamento!AA452 -> 
B21: 5. | C21: =Orçamento!$P453 -> GUARDA-CORPO | G21: =IFERROR(Orçamento!S453,"-") -> 0 | H21: =IFERROR(Orçamento!X453,"") -> 0 | I21: =Orçamento!AA453 -> 
B22: 6. | C22: =Orçamento!$P454 -> INSTALAÇÕES DE PREVENÇÃO E COMBATE À INCÊNDIO | G22: =IFERROR(Orçamento!S454,"-") -> 0 | H22: =IFERROR(Orçamento!X454,"") -> 0 | I22: =Orçamento!AA454 -> 
B23: 7. | C23: =Orçamento!$P455 -> PROJETO DE INSTALAÇÕES ELÉTRICAS | G23: =IFERROR(Orçamento!S455,"-") -> 0 | H23: =IFERROR(Orçamento!X455,"") -> 0 | I23: =Orçamento!AA455 -> 
B24: 8. | C24: =Orçamento!$P456 -> PROJETO DE INSTALAÇÕES HIDROSSANITÁRIAS | G24: =IFERROR(Orçamento!S456,"-") -> 0 | H24: =IFERROR(Orçamento!X456,"") -> 0 | I24: =Orçamento!AA456 -> 
B25: 9. | C25: =Orçamento!$P457 -> CUSTOS RELATIVOS À OBRA | G25: =IFERROR(Orçamento!S457,"-") -> 0 | H25: =IFERROR(Orçamento!X457,"") -> 0 | I25: =Orçamento!AA457 -> 
B26: 10. | C26: =Orçamento!$P458 ->  | G26: =IFERROR(Orçamento!S458,"-") -> 0 | H26: =IFERROR(Orçamento!X458,"") -> 0 | I26: =Orçamento!AA458 -> 
B27: 11. | C27: =Orçamento!$P459 ->  | G27: =IFERROR(Orçamento!S459,"-") -> 0 | H27: =IFERROR(Orçamento!X459,"") -> 0 | I27: =Orçamento!AA459 -> 
B28: 12. | C28: =Orçamento!$P460 ->  | G28: =IFERROR(Orçamento!S460,"-") -> 0 | H28: =IFERROR(Orçamento!X460,"") -> 0 | I28: =Orçamento!AA460 -> 
B29: 13. | C29: =Orçamento!$P461 ->  | G29: =IFERROR(Orçamento!S461,"-") -> 0 | H29: =IFERROR(Orçamento!X461,"") -> 0 | I29: =Orçamento!AA461 -> 
B30: 14. | C30: =Orçamento!$P462 ->  | G30: =IFERROR(Orçamento!S462,"-") -> 0 | H30: =IFERROR(Orçamento!X462,"") -> 0 | I30: =Orçamento!AA462 -> 
B31: 15. | C31: =Orçamento!$P463 ->  | G31: =IFERROR(Orçamento!S463,"-") -> 0 | H31: =IFERROR(Orçamento!X463,"") -> 0 | I31: =Orçamento!AA463 -> 
B32: 16. | C32: =Orçamento!$P464 ->  | G32: =IFERROR(Orçamento!S464,"-") -> 0 | H32: =IFERROR(Orçamento!X464,"") -> 0 | I32: =Orçamento!AA464 -> 
B33: 17. | C33: =Orçamento!$P465 ->  | G33: =IFERROR(Orçamento!S465,"-") -> 0 | H33: =IFERROR(Orçamento!X465,"") -> 0 | I33: =Orçamento!AA465 -> 
B34: 18. | C34: =Orçamento!$P466 ->  | G34: =IFERROR(Orçamento!S466,"-") -> 0 | H34: =IFERROR(Orçamento!X466,"") -> 0 | I34: =Orçamento!AA466 -> 
B35: 19. | C35: =Orçamento!$P467 ->  | G35: =IFERROR(Orçamento!S467,"-") -> 0 | H35: =IFERROR(Orçamento!X467,"") -> 0 | I35: =Orçamento!AA467 -> 
B36: 20. | C36: =Orçamento!$P468 ->  | G36: =IFERROR(Orçamento!S468,"-") -> 0 | H36: =IFERROR(Orçamento!X468,"") -> 0 | I36: =Orçamento!AA468 -> 
A37: F | B37: TOTAL GERAL DO ORÇAMENTO (R$) | G37: =SUM(G17:G36) -> 0 | H37: =SUM(H17:H36) -> 0 | I37: =SUM(I17:I36) -> 
A38: F
A39: F
C41: =B4 -> COLÉGIO ESTADUAL ARTUR DA COSTA E SILVA | G41: =IF(H37>200000,"PASSANDO","FALTANDO") -> FALTANDO | H41: =ABS(200000-H37) -> 200000

Sheet Somatório
B3: UNIDADE ESCOLAR | E3: CÓDIGO INEP
B4: =Orçamento!$O$4 -> COLÉGIO ESTADUAL ARTUR DA COSTA E SILVA | E4: =Orçamento!X4 -> 52024164
B6: OBRA | E6: CIDADE
B7: =Orçamento!$O$7 -> REFORMA E AMPLIAÇÃO | E7: =Orçamento!$X$7 -> ITAGUARU
B9: ENDEREÇO | E9: CRE
B10: =Orçamento!$R$10 -> R SEBASTIAO RODRIGUES DA SILVA 807 , CENTRO , CEP:76660-000 | E10: =Orçamento!$O$10 -> CRE-ITABERAI
B12: REFERÊNCIA | D12: DATA | E12: ÁREA TOTAL CONSTRUÍDA (M²)
B13: =CONCATENATE("AGETOP E SINAPI - ",Orçamento!$T$10) -> AGETOP E SINAPI - DESONERADA | D13: =Orçamento!$S$7 -> 2020-07-17 | E13: =Orçamento!$X$13 -> 1708.42
A14: FILTRO
B15: SOMATÓRIO DE SERVIÇOS
A16: ↓ | B16: ITEM | C16: DESCRIÇÃO DOS SERVIÇOS | D16: PREÇO SEM BDI (R$) | E16: PREÇO COM BDI (R$) | F16: PARTIC. ( % )
A17: =IF(D17>0,"F","") ->  | B17: a. | C17: =Orçamento!P415 -> SERVIÇOS PRELIMINARES | D17: =Orçamento!S415 -> 0 | E17: =Orçamento!X415 -> 0 | F17: =Orçamento!AA415 -> 0
A18: =IF(D18>0,"F","") ->  | B18: b. | C18: =Orçamento!P416 -> TRANSPORTES | D18: =Orçamento!S416 -> 0 | E18: =Orçamento!X416 -> 0 | F18: =Orçamento!AA416 -> 0
B19: c. | C19: =Orçamento!P417 -> SERVIÇO EM TERRA | D19: =Orçamento!S417 -> 0 | E19: =Orçamento!X417 -> 0 | F19: =Orçamento!AA417 -> 0
B20: d. | C20: =Orçamento!P418 -> FUNDAÇÕES E SONDAGENS | D20: =Orçamento!S418 -> 0 | E20: =Orçamento!X418 -> 0 | F20: =Orçamento!AA418 -> 0
B21: e. | C21: =Orçamento!P419 -> ESTRUTURA | D21: =Orçamento!S419 -> 0 | E21: =Orçamento!X419 -> 0 | F21: =Orçamento!AA419 -> 0
B22: f. | C22: =Orçamento!P420 -> INSTALAÇÕES ELÉTRICAS | D22: =Orçamento!S420 -> 0 | E22: =Orçamento!X420 -> 0 | F22: =Orçamento!AA420 -> 0
B23: g. | C23: =Orçamento!P421 -> INSTALAÇÕES HIDROSSANITÁRIAS | D23: =Orçamento!S421 -> 0 | E23: =Orçamento!X421 -> 0 | F23: =Orçamento!AA421 -> 0
B24: h | C24: =Orçamento!P422 -> INSTALAÇÕES ESPECIAIS | D24: =Orçamento!S422 -> 0 | E24: =Orçamento!X422 -> 0 | F24: =Orçamento!AA422 -> 0
B25: i. | C25: =Orçamento!P423 -> ALVENARIAS E DIVISÓRIAS | D25: =Orçamento!S423 -> 0 | E25: =Orçamento!X423 -> 0 | F25: =Orçamento!AA423 -> 0
B26: j. | C26: =Orçamento!P424 -> ALVENARIA AUTO-PORTANTE | D26: =Orçamento!S424 -> 0 | E26: =Orçamento!X424 -> 0 | F26: =Orçamento!AA424 -> 0
B27: k. | C27: =Orçamento!P425 -> IMPERMEABILIZAÇÃO | D27: =Orçamento!S425 -> 0 | E27: =Orçamento!X425 -> 0 | F27: =Orçamento!AA425 -> 0
B28: l. | C28: =Orçamento!P426 -> ISOLAMENTO TÉRMICO E ACÚSTICO | D28: =Orçamento!S426 -> 0 | E28: =Orçamento!X426 -> 0 | F28: =Orçamento!AA426 -> 0
B29: m. | C29: =Orçamento!P427 -> ESTRUTURA DE MADEIRA | D29: =Orçamento!S427 -> 0 | E29: =Orçamento!X427 -> 0 | F29: =Orçamento!AA427 -> 0
B30: n. | C30: =Orçamento!P428 -> ESTRUTURAS METÁLICAS | D30: =Orçamento!S428 -> 0 | E30: =Orçamento!X428 -> 0 | F30: =Orçamento!AA428 -> 0
B31: o. | C31: =Orçamento!P429 -> COBERTURAS | D31: =Orçamento!S429 -> 0 | E31: =Orçamento!X429 -> 0 | F31: =Orçamento!AA429 -> 0
B32: p. | C32: =Orçamento!P430 -> ESQUADRIAS DE MADEIRA | D32: =Orçamento!S430 -> 0 | E32: =Orçamento!X430 -> 0 | F32: =Orçamento!AA430 -> 0
B33: q. | C33: =Orçamento!P431 -> ESQUADRIAS METÁLICAS | D33: =Orçamento!S431 -> 0 | E33: =Orçamento!X431 -> 0 | F33: =Orçamento!AA431 -> 0
B34: r. | C34: =Orçamento!P432 -> VIDROS | D34: =Orçamento!S432 -> 0 | E34: =Orçamento!X432 -> 0 | F34: =Orçamento!AA432 -> 0
B35: s. | C35: =Orçamento!P433 -> REVESTIMENTO DE PAREDE | D35: =Orçamento!S433 -> 0 | E35: =Orçamento!X433 -> 0 | F35: =Orçamento!AA433 -> 0
B36: t. | C36: =Orçamento!P434 -> FORROS | D36: =Orçamento!S434 -> 0 | E36: =Orçamento!X434 -> 0 | F36: =Orçamento!AA434 -> 0
B37: u. | C37: =Orçamento!P435 -> REVESTIMENTO DE PISO | D37: =Orçamento!S435 -> 0 | E37: =Orçamento!X435 -> 0 | F37: =Orçamento!AA435 -> 0
B38: v. | C38: =Orçamento!P436 -> FERRAGENS | D38: =Orçamento!S436 -> 0 | E38: =Orçamento!X436 -> 0 | F38: =Orçamento!AA436 -> 0
B39: w. | C39: =Orçamento!P437 -> MARCENARIA | D39: =Orçamento!S437 -> 0 | E39: =Orçamento!X437 -> 0 | F39: =Orçamento!AA437 -> 0
B40: x. | C40: =Orçamento!P438 -> ADMINISTRAÇÃO | D40: =Orçamento!S438 -> 0 | E40: =Orçamento!X438 -> 0 | F40: =Orçamento!AA438 -> 0
B41: y. | C41: =Orçamento!P439 -> PINTURA | D41: =Orçamento!S439 -> 0 | E41: =Orçamento!X439 -> 0 | F41: =Orçamento!AA439 -> 0
B42: z. | C42: =Orçamento!P440 -> DIVERSOS | D42: =Orçamento!S440 -> 0 | E42: =Orçamento!X440 -> 0 | F42: =Orçamento!AA440 -> 0
A43: F | B43: TOTAL GERAL DO ORÇAMENTO | D43: =SUM(D17:D42) -> 0 | E43: =SUM(E17:E42) -> 0 | F43: =SUM(F17:F42) -> 0
B45: (*) Para itens da AGETOP, os vidros não estão inclusos nas esquadrias e já foram considerados os custos de contramarco para as esquadrias de alumínio;

Sheet Cronog_45_Dias
B3: UNIDADE ESCOLAR | I3: PRAZO
B4: =Orçamento!$O$4 -> COLÉGIO ESTADUAL ARTUR DA COSTA E SILVA | I4: 45 DIAS CORRIDOS
B6: OBRA | I6: DATA
B7: =Orçamento!$O$7 -> REFORMA E AMPLIAÇÃO | I7: =Orçamento!$S$7 -> 2020-07-17
B9: LOCAL | I9: ÁREA TOTAL CONSTRUÍDA (M²)
A10: FILTRO | B10: =Orçamento!$X$7 -> ITAGUARU | I10: =Orçamento!$X$13 -> 1708.42
B12: CRONOGRAMA - FÍSICO FINANCEIRO
A13: ↓ | B13: CUSTO TOTAL: | C13: =D93 -> 0 | D13: VALOR | E13: Dias: | F13: 22 | J13: 45 | N13: TOTAL
B14: DESCRIÇÃO DOS SERVIÇOS | E14: % | F14: 1ª PARCELA | J14: 2ª PARCELA
A15: =IF(D15>0,"F","") ->  | B15: SERVIÇOS PRELIMINARES | D15: =Orçamento!X415 -> 0 | E15: =Orçamento!AA415 -> 0 | F15: =ROUND(F17*$D$15,2) -> 0 | J15: =ROUND(J17*$D$15,2) -> 0 | N15: =SUM(F15:M15) -> 0 | P15: =N15=D15 -> TRUE
A16: =IF(A15="F",A15,"") ->  | P16: =N16=D16 -> TRUE
A17: =IF(A16="F",A16,"") ->  | F17: 1 | J17: =1-F17 -> 0 | N17: =IFERROR(E15/100,"") -> 0 | P17: TRUE
A18: =IF(D18>0,"F","") ->  | B18: TRANSPORTES | D18: =Orçamento!X416 -> 0 | E18: =Orçamento!AA416 -> 0 | F18: =ROUND(F20*$D$18,2) -> 0 | J18: =ROUND(J20*$D$18,2) -> 0 | N18: =SUM(F18:M18) -> 0 | P18: TRUE
A19: =IF(A18="F",A18,"") ->  | P19: TRUE
A20: =IF(A19="F",A19,"") ->  | F20: 0.48 | J20: =1-F20 -> 0.52 | N20: =IFERROR(E18/100,"") -> 0 | P20: TRUE
A21: =IF(D21>0,"F","") ->  | B21: SERVIÇO EM TERRA | D21: =Orçamento!X417 -> 0 | E21: =Orçamento!AA417 -> 0 | F21: =ROUND(F23*$D$21,2) -> 0 | J21: =ROUND(J23*$D$21,2) -> 0 | N21: =SUM(F21:M21) -> 0 | P21: TRUE
A22: =IF(A21="F",A21,"") ->  | P22: TRUE
A23: =IF(A22="F",A22,"") ->  | F23: 1 | J23: =1-F23 -> 0 | N23: =IFERROR(E21/100,"") -> 0 | P23: TRUE
A24: =IF(D24>0,"F","") ->  | B24: FUNDAÇÕES E SONDAGENS | D24: =Orçamento!X418 -> 0 | E24: =Orçamento!AA418 -> 0 | F24: =ROUND(F26*$D$24,2) -> 0 | J24: =ROUND(J26*$D$24,2) -> 0 | N24: =SUM(F24:M24) -> 0 | P24: TRUE
A25: =IF(A24="F",A24,"") ->  | P25: TRUE
A26: =IF(A25="F",A25,"") ->  | F26: 1 | J26: =1-F26 -> 0 | N26: =IFERROR(E24/100,"") -> 0 | P26: TRUE
A27: =IF(D27>0,"F","") ->  | B27: ESTRUTURA | D27: =Orçamento!X419 -> 0 | E27: =Orçamento!AA419 -> 0 | F27: =ROUND(F29*$D$27,2) -> 0 | J27: =ROUND(J29*$D$27,2) -> 0 | N27: =SUM(F27:M27) -> 0 | P27: TRUE
A28: =IF(A27="F",A27,"") ->  | P28: TRUE
A29: =IF(A28="F",A28,"") ->  | F29: 0.49 | J29: =1-F29 -> 0.51 | N29: =IFERROR(E27/100,"") -> 0 | P29: TRUE
A30: =IF(D30>0,"F","") ->  | B30: INST.ELET/TELEFÔNICA/CABEAMENTO ESTRUTURADO | D30: =Orçamento!X420 -> 0 | E30: =Orçamento!AA420 -> 0 | F30: =ROUND(F32*$D$30,2) -> 0 | J30: =ROUND(J32*$D$30,2) -> 0 | N30: =SUM(F30:M30) -> 0 | P30: TRUE
A31: =IF(A30="F",A30,"") ->  | P31: TRUE
A32: =IF(A31="F",A31,"") ->  | F32: 0.4 | J32: =1-F32 -> 0.6 | N32: =IFERROR(E30/100,"") -> 0 | P32: TRUE
A33: =IF(D33>0,"F","") ->  | B33: INSTALAÇÕES HIDROSSANITÁRIAS | D33: =Orçamento!X421 -> 0 | E33: =Orçamento!AA421 -> 0 | F33: =ROUND(F35*$D$33,2) -> 0 | J33: =ROUND(J35*$D$33,2) -> 0 | N33: =SUM(F33:M33) -> 0 | P33: TRUE
A34: =IF(A33="F",A33,"") ->  | P34: TRUE
A35: =IF(A34="F",A34,"") ->  | F35: 0.48 | J35: =1-F35 -> 0.52 | N35: =IFERROR(E33/100,"") -> 0 | P35: TRUE
A36: =IF(D36>0,"F","") ->  | B36: INSTALAÇÕES ESPECIAIS | D36: =Orçamento!X422 -> 0 | E36: =Orçamento!AA422 -> 0 | F36: =ROUND(F38*$D$36,2) -> 0 | J36: =ROUND(J38*$D$36,2) -> 0 | N36: =SUM(F36:M36) -> 0 | P36: TRUE
A37: =IF(A36="F",A36,"") ->  | P37: TRUE
A38: =IF(A37="F",A37,"") ->  | F38: 1 | J38: =1-F38 -> 0 | N38: =IFERROR(E36/100,"") -> 0 | P38: TRUE
A39: =IF(D39>0,"F","") ->  | B39: ALVENARIA E DIVISÓRIAS | D39: =Orçamento!X423 -> 0 | E39: =Orçamento!AA423 -> 0 | F39: =ROUND(F41*$D$39,2) -> 0 | J39: =ROUND(J41*$D$39,2) -> 0 | N39: =SUM(F39:M39) -> 0 | P39: TRUE
A40: =IF(A39="F",A39,"") ->  | P40: TRUE
A41: =IF(A40="F",A40,"") ->  | F41: 1 | J41: =1-F41 -> 0 | N41: =IFERROR(E39/100,"") -> 0 | P41: TRUE
A42: =IF(D42>0,"F","") ->  | B42: ALVENARIA AUTO-PORTANTE | D42: =Orçamento!X424 -> 0 | E42: =Orçamento!AA424 -> 0 | F42: =ROUND(F44*$D$42,2) -> 0 | J42: =ROUND(J44*$D$42,2) -> 0 | N42: =SUM(F42:M42) -> 0
A43: =IF(A42="F",A42,"") -> 
A44: =IF(A43="F",A43,"") ->  | F44: 1 | J44: =1-F44 -> 0 | N44: =IFERROR(E42/100,"") -> 0
A45: =IF(D45>0,"F","") ->  | B45: IMPERMEABILIZAÇÃO | D45: =Orçamento!X425 -> 0 | E45: =Orçamento!AA425 -> 0 | F45: =ROUND(F47*$D$45,2) -> 0 | J45: =ROUND(J47*$D$45,2) -> 0 | N45: =SUM(F45:M45) -> 0 | P45: =N45=D45 -> TRUE
A46: =IF(A45="F",A45,"") ->  | P46: TRUE
A47: =IF(A46="F",A46,"") ->  | F47: 1 | J47: =1-F47 -> 0 | N47: =IFERROR(E45/100,"") -> 0 | P47: TRUE
A48: =IF(D48>0,"F","") ->  | B48: ISOLAMENTO TÉRMICO E ACÚSTICO | D48: =Orçamento!X426 -> 0 | E48: =Orçamento!AA426 -> 0 | F48: =ROUND(F50*$D$48,2) -> 0 | J48: =ROUND(J50*$D$48,2) -> 0 | N48: =SUM(F48:M48) -> 0
A49: =IF(A48="F",A48,"") -> 
A50: =IF(A49="F",A49,"") ->  | F50: 0.5 | J50: =1-F50 -> 0.5 | N50: =IFERROR(E48/100,"") -> 0
A51: =IF(D51>0,"F","") ->  | B51: ESTRUTURA DE MADEIRA | D51: =Orçamento!X427 -> 0 | E51: =Orçamento!AA427 -> 0 | F51: =ROUND(F53*$D$51,2) -> 0 | J51: =ROUND(J53*$D$51,2) -> 0 | N51: =SUM(F51:M51) -> 0 | P51: =N51=D51 -> TRUE
A52: =IF(A51="F",A51,"") ->  | P52: TRUE
A53: =IF(A52="F",A52,"") ->  | F53: 0.4 | J53: =1-F53 -> 0.6 | N53: =IFERROR(E51/100,"") -> 0 | P53: TRUE
A54: =IF(D54>0,"F","") ->  | B54: ESTRUTURA METÁLICA | D54: =Orçamento!X428 -> 0 | E54: =Orçamento!AA428 -> 0 | F54: =ROUND(F56*$D$54,2) -> 0 | J54: =ROUND(J56*$D$54,2) -> 0 | N54: =SUM(F54:M54) -> 0
A55: =IF(A54="F",A54,"") -> 
A56: =IF(A55="F",A55,"") ->  | F56: 0.35 | J56: =1-F56 -> 0.65 | N56: =IFERROR(E54/100,"") -> 0
A57: =IF(D57>0,"F","") ->  | B57: COBERTURAS | D57: =Orçamento!X429 -> 0 | E57: =Orçamento!AA429 -> 0 | F57: =ROUND(F59*$D$57,2) -> 0 | J57: =ROUND(J59*$D$57,2) -> 0 | N57: =SUM(F57:M57) -> 0 | P57: =N57=D57 -> TRUE
A58: =IF(A57="F",A57,"") ->  | P58: TRUE
A59: =IF(A58="F",A58,"") ->  | F59: 0 | J59: =1-F59 -> 1 | N59: =IFERROR(E57/100,"") -> 0 | P59: TRUE
A60: =IF(D60>0,"F","") ->  | B60: ESQUADRIAS DE MADEIRA | D60: =Orçamento!X430 -> 0 | E60: =Orçamento!AA430 -> 0 | F60: =ROUND(F62*$D$60,2) -> 0 | J60: =ROUND(J62*$D$60,2) -> 0 | N60: =SUM(F60:M60) -> 0
A61: =IF(A60="F",A60,"") -> 
A62: =IF(A61="F",A61,"") ->  | F62: 0.54 | J62: =1-F62 -> 0.46 | N62: =IFERROR(E60/100,"") -> 0
A63: =IF(D63>0,"F","") ->  | B63: ESQUADRIAS METÁLICAS | D63: =Orçamento!X431 -> 0 | E63: =Orçamento!AA431 -> 0 | F63: =ROUND(F65*$D$63,2) -> 0 | J63: =ROUND(J65*$D$63,2) -> 0 | N63: =SUM(F63:M63) -> 0 | P63: =N63=D63 -> TRUE
A64: =IF(A63="F",A63,"") ->  | P64: TRUE
A65: =IF(A64="F",A64,"") ->  | F65: 0.49 | J65: =1-F65 -> 0.51 | N65: =IFERROR(E63/100,"") -> 0 | P65: TRUE
A66: =IF(D66>0,"F","") ->  | B66: VIDROS | D66: =Orçamento!X432 -> 0 | E66: =Orçamento!AA432 -> 0 | F66: =ROUND(F68*$D$66,2) -> 0 | J66: =ROUND(J68*$D$66,2) -> 0 | N66: =SUM(F66:M66) -> 0 | P66: TRUE
A67: =IF(A66="F",A66,"") ->  | P67: TRUE
A68: =IF(A67="F",A67,"") ->  | F68: 0 | J68: =1-F68 -> 1 | N68: =IFERROR(E66/100,"") -> 0 | P68: TRUE
A69: =IF(D69>0,"F","") ->  | B69: REVESTIMENTO DE PAREDE | D69: =Orçamento!X433 -> 0 | E69: =Orçamento!AA433 -> 0 | F69: =ROUND(F71*$D$69,2) -> 0 | J69: =ROUND(J71*$D$69,2) -> 0 | N69: =SUM(F69:M69) -> 0 | P69: TRUE
A70: =IF(A69="F",A69,"") ->  | P70: TRUE
A71: =IF(A70="F",A70,"") ->  | F71: 0.32 | J71: =1-F71 -> 0.68 | N71: =IFERROR(E69/100,"") -> 0 | P71: TRUE
A72: =IF(D72>0,"F","") ->  | B72: FORROS | D72: =Orçamento!X434 -> 0 | E72: =Orçamento!AA434 -> 0 | F72: =ROUND(F74*$D$72,2) -> 0 | J72: =ROUND(J74*$D$72,2) -> 0 | N72: =SUM(F72:M72) -> 0 | P72: TRUE
A73: =IF(A72="F",A72,"") ->  | P73: TRUE
A74: =IF(A73="F",A73,"") ->  | F74: 0.24 | J74: =1-F74 -> 0.76 | N74: =IFERROR(E72/100,"") -> 0 | P74: TRUE
A75: =IF(D75>0,"F","") ->  | B75: REVESTIMENTO DE PISO | D75: =Orçamento!X435 -> 0 | E75: =Orçamento!AA435 -> 0 | F75: =ROUND(F77*$D$75,2) -> 0 | J75: =ROUND(J77*$D$75,2) -> 0 | N75: =SUM(F75:M75) -> 0 | P75: TRUE
A76: =IF(A75="F",A75,"") ->  | P76: TRUE
A77: =IF(A76="F",A76,"") ->  | F77: 0.49 | J77: =1-F77 -> 0.51 | N77: =IFERROR(E75/100,"") -> 0 | P77: TRUE
A78: =IF(D78>0,"F","") ->  | B78: FERRAGENS | D78: =Orçamento!X436 -> 0 | E78: =Orçamento!AA436 -> 0 | F78: =ROUND(F80*$D$78,2) -> 0 | J78: =ROUND(J80*$D$78,2) -> 0 | N78: =SUM(F78:M78) -> 0 | P78: TRUE
A79: =IF(A78="F",A78,"") ->  | P79: TRUE
A80: =IF(A79="F",A79,"") ->  | F80: 0 | J80: =1-F80 -> 1 | N80: =IFERROR(E78/100,"") -> 0 | P80: TRUE
A81: =IF(D81>0,"F","") ->  | B81: MARCENARIA | D81: =Orçamento!X437 -> 0 | E81: =Orçamento!AA437 -> 0 | F81: =ROUND(F83*$D$81,2) -> 0 | J81: =ROUND(J83*$D$81,2) -> 0 | N81: =SUM(F81:M81) -> 0
A82: =IF(A81="F",A81,"") -> 
A83: =IF(A82="F",A82,"") ->  | F83: 0.4 | J83: =1-F83 -> 0.6 | N83: =IFERROR(E81/100,"") -> 0
A84: =IF(D84>0,"F","") ->  | B84: ADMINISTRAÇÃO - MENSALISTAS | D84: =Orçamento!X438 -> 0 | E84: =Orçamento!AA438 -> 0 | F84: =ROUND(F86*$D$84,2) -> 0 | J84: =ROUND(J86*$D$84,2) -> 0 | N84: =SUM(F84:M84) -> 0 | P84: =N84=D84 -> TRUE
A85: =IF(A84="F",A84,"") ->  | P85: TRUE
A86: =IF(A85="F",A85,"") ->  | F86: 0.49 | J86: =1-F86 -> 0.51 | N86: =IFERROR(E84/100,"") -> 0 | P86: TRUE
A87: =IF(D87>0,"F","") ->  | B87: PINTURA | D87: =Orçamento!X439 -> 0 | E87: =Orçamento!AA439 -> 0 | F87: =ROUND(F89*$D$87,2) -> 0 | J87: =ROUND(J89*$D$87,2) -> 0 | N87: =SUM(F87:M87) -> 0 | P87: TRUE
A88: =IF(A87="F",A87,"") ->  | P88: TRUE
A89: =IF(A88="F",A88,"") ->  | F89: 0 | J89: =1-F89 -> 1 | N89: =IFERROR(E87/100,"") -> 0 | P89: TRUE
A90: =IF(D90>0,"F","") ->  | B90: DIVERSOS | D90: =Orçamento!X440 -> 0 | E90: =Orçamento!AA440 -> 0 | F90: =ROUND(F92*$D$90,2) -> 0 | J90: =ROUND(J92*$D$90,2) -> 0 | N90: =SUM(F90:M90) -> 0 | P90: TRUE
A91: =IF(A90="F",A90,"") ->  | P91: TRUE
A92: =IF(A91="F",A91,"") ->  | F92: 0.46 | J92: =1-F92 -> 0.54 | N92: =IFERROR(E90/100,"") -> 0 | P92: TRUE
A93: F | B93: CUSTO DO ORÇAMENTO | D93: =SUM(D15:D92) -> 0 | E93: =SUM(E15:E92) -> 0 | F93: =F15+F18+F21+F24+F27+F30+F33+F36+F39+F42+F45+F48+F51+F54+F57+F60+F63+F66+F69+F72+F75+F78+F81+F84+F87+F90 -> 0 | J93: =J15+J18+J21+J24+J27+J30+J33+J36+J39+J42+J45+J48+J51+J54+J57+J60+J63+J66+J69+J72+J75+J78+J81+J84+J87+J90 -> 0 | N93: =N15+N18+N21+N24+N27+N30+N33+N36+N39+N42+N45+N48+N51+N54+N57+N60+N63+N66+N69+N72+N75+N78+N81+N84+N87+N90 -> 0
A94: F | B94: PERCENTUAIS: | F94: =IFERROR(F93/D93,"") ->  | J94: =IFERROR(J93/D93,"") ->  | N94: =SUM(F94:M94) -> 0 | P94: =51.74+48.26 -> 100
A95: F | B95: TOTAIS ACUMULADOS: | F95: =F93 -> 0 | J95: =F95+J93 -> 0
A96: F | B96: PERCENTUAIS ACUMULADOS: | F96: =F94 ->  | J96: =IFERROR(F96+J94,"") -> 
A97: F
A98: F | B98: OBSERVAÇÕES:
A99: F | B99: Os pagamentos somente poderão ser efetuados mediante medição e atesto pelos técnicos da Secretaria da Educação.

Sheet Composição BDI
A3: UNIDADE ESCOLAR
A4: =Orçamento!$O$4 -> COLÉGIO ESTADUAL ARTUR DA COSTA E SILVA
A6: OBRA
A7: =Orçamento!$O$7 -> REFORMA E AMPLIAÇÃO
A9: ENDEREÇO
A10: =Orçamento!$R$10 -> R SEBASTIAO RODRIGUES DA SILVA 807 , CENTRO , CEP:76660-000
A12: CIDADE
A13: =Orçamento!$X$7 -> ITAGUARU
A15: CRE
A16: =Orçamento!$O$10 -> CRE-ITABERAI
A18: DETALHAMENTO DA COMPOSIÇÃO DE BDI
A19: COMPOSIÇÃO BDI PARA OBRAS CIVIS | F19: BDI CONSTRUÇÃO E REFORMA
A20: DESCRIÇÃO | B20: COEF. | C20: TAXA % (a.m) | D20: % no preço de venda | F20: Situação | G20: 1º Quartil | H20: Médio | I20: 3º Quartil
A21: 1) COFINS | B21: 1 | C21: 0.03 | D21: 0.03 | F21: =IF(OR(C21<G21,C21>I21),"FORA DO INTERVALO","OK") -> OK | G21: 0.03 | H21: 0.03 | I21: 0.03
A22: 2) PIS | B22: 1 | C22: 0.0065 | D22: 0.0065 | F22: =IF(OR(C22<G22,C22>I22),"FORA DO INTERVALO","OK") -> OK | G22: 0.0065 | H22: 0.0065 | I22: 0.0065
A23: 3) ISSQN | B23: 1 | C23: 0.03 | D23: 0.03 | F23: OK | G23: 0.02 | H23: 0.035 | I23: 0.05
A24: 4) CPRB | B24: 1 | C24: 0.045 | D24: 0.045 | F24: OK | G24: 0.045 | H24: 0.045 | I24: 0.045
A25: 5) Administração Central | B25: 1 | C25: 0.04 | D25: 0.04 | F25: OK | G25: 0.03 | H25: 0.04 | I25: 0.055
A26: 6) Despesas Financeiras | B26: 1 | C26: 0.0056 | D26: 0.0056 | F26: FORA DO INTERVALO | G26: 0.0059 | H26: 0.0123 | I26: 0.0139
A27: 7) Seguros + Garantias | B27: 1 | C27: 0.0012 | D27: 0.0012 | F27: FORA DO INTERVALO | G27: 0.008 | H27: 0.008 | I27: 0.01
A28: 8) Risco | B28: 1 | C28: 0.0097 | D28: 0.0097 | F28: OK | G28: 0.0097 | H28: 0.0127 | I28: 0.0127
A29: 9) Lucro | B29: 1 | C29: 0.06304 | D29: 0.06304 | F29: OK | G29: 0.0616 | H29: 0.074 | I29: 0.0896
A30: BDI - FINAL | D30: 0.2643835328 | F30: =IF(OR(D30<G30,D30>I30),"FORA DO INTERVALO","OK") -> FORA DO INTERVALO | G30: 0.2034 | H30: 0.2212 | I30: 0.25
A32: Notas:
A33: (1) e (2) Alíquota definida por lei.
A34: (3) Alíquota e base de cálculo definidas pela legislação municipal.
A35: (4) Alíquota definida pelas leis 12.546/11, 12844/13 e 13.161/15 (CPRB – contribuição previdenciária sobre a receita bruta).
A36: (5) Valores definidos a partir dos limites no Acórdão nº 2.622/2013 - TCU – Plenário. Valores entre o 1º e 3º quartis.
A37: (6) Valor calculado pela expressão matemática do acórdão 2.369/2011 – TCU – Plenário e disponibilizado pela AGETOP em dezembro de 2018. (Foi utilizado para o cálculo a média da Taxa SELIC no período de 11/2017 a 10/2018)
A39: (7) Valores definidos pela AGETOP a partir dos limites no Acórdão nº 2.622/2013 - TCU – Plenário. Valores médios. Observação da AGETOP: (Seguros contra erros de execução, incêndio e explosão, danos da natureza (vendaval, destelhamento, alagamento, inundação, desmoronamento, geadas etc.), emprego de material defeituoso ou inadequado, roubo e/ou furto qualificado, quebra de equipamentos, desmoronamento de estrutura, nas modalidades de Obras Civis em Construção (OCC); Instalação e Montagem (IM); e Obras Civis em Construção e Instalação e Montagem (OCC/IM). Bem como coberturas adicionais para ampliação dessas coberturas básicas, como: cobertura de responsabilidade civil geral, cobertura de responsabilidade civil cruzada, cobertura de despesas extraordinárias, cobertura de tumultos, cobertura de desentulho do local, cobertura de riscos do fabricante, dentre outras, incluindo o seguro de vida em grupo regido pela convenção coletiva dos trabalhadores na indústria da construção civil). A partir de 24/02/2015 por intermédio da Portaria 449/2015 a Presidência da AGETOP, na pessoa do Senhor Jayme Eduardo Rincon, determinou a exclusão dos valores referentes aos Seguros de Risco de Engenharia e Responsabilidade Civil do Profissional na composição do cálculo do B.D.I..
A40: (8) Valores definidos a partir dos limites no Acórdão nº 2.622/2013 - TCU – Plenário. Valores entre 1º e 3° quartis.
A41: (9) Valores definidos a partir dos limites definidos no Acórdão nº 2.622/2013 - TCU – Plenário. Valores adotados e praticados no mercado ( “ ex ante ” ) ou aqueles entre os 1º e 3º quartis.
A43: (*) A fórmula para estipulação da taxa de BDI estimado adotado é a mesma que foi aplicada para a obtenção das tabelas contidas no Acórdão n. 2.622/2013 – TCUPlenário
A45: Obs.: Para obras com valores superiores a R$ 20.000.000,00 sugere-se recalcular o BDI, dimensionando as taxas de administração central e lucro para patamares inferiores ao estipulado acima.

Sheet Relatório CENTRAL
B3: UNIDADE ESCOLAR | D3: CIDADE
B4: =Orçamento!$O$4 -> COLÉGIO ESTADUAL ARTUR DA COSTA E SILVA | D4: =Orçamento!$X$7 -> ITAGUARU
B6: OBRA | D6: CRE
B7: =Orçamento!$O$7 -> REFORMA E AMPLIAÇÃO | D7: =Orçamento!$O$10 -> CRE-ITABERAI
B9: ENDEREÇO | D9: DATA
A10: FILTRO | B10: =Orçamento!$R$10 -> R SEBASTIAO RODRIGUES DA SILVA 807 , CENTRO , CEP:76660-000 | D10: =Orçamento!$S$7 -> 2020-07-17
B12: RELATÓRIO CENTRAL
A13: ↓ | B13: CÓDIGO | C13: ETAPA | D13: PREÇO (R$) C/ BDI | E13: PARTIC ( % )
A14: =IF(D14>0,"F","") ->  | B14: =Orçamento!O415 -> a. | C14: =Orçamento!P415 -> SERVIÇOS PRELIMINARES | D14: =Orçamento!X415 -> 0 | E14: =Orçamento!AA415 -> 0
A15: =IF(D15>0,"F","") ->  | B15: =Orçamento!O416 -> b. | C15: =Orçamento!P416 -> TRANSPORTES | D15: =Orçamento!X416 -> 0 | E15: =Orçamento!AA416 -> 0
B16: =Orçamento!O417 -> c. | C16: =Orçamento!P417 -> SERVIÇO EM TERRA | D16: =Orçamento!X417 -> 0 | E16: =Orçamento!AA417 -> 0
B17: =Orçamento!O418 -> d. | C17: =Orçamento!P418 -> FUNDAÇÕES E SONDAGENS | D17: =Orçamento!X418 -> 0 | E17: =Orçamento!AA418 -> 0
B18: =Orçamento!O419 -> e. | C18: =Orçamento!P419 -> ESTRUTURA | D18: =Orçamento!X419 -> 0 | E18: =Orçamento!AA419 -> 0
B19: =Orçamento!O420 -> f. | C19: =Orçamento!P420 -> INSTALAÇÕES ELÉTRICAS | D19: =Orçamento!X420 -> 0 | E19: =Orçamento!AA420 -> 0
B20: =Orçamento!O421 -> g. | C20: =Orçamento!P421 -> INSTALAÇÕES HIDROSSANITÁRIAS | D20: =Orçamento!X421 -> 0 | E20: =Orçamento!AA421 -> 0
B21: =Orçamento!O422 -> h | C21: =Orçamento!P422 -> INSTALAÇÕES ESPECIAIS | D21: =Orçamento!X422 -> 0 | E21: =Orçamento!AA422 -> 0
B22: =Orçamento!O423 -> i. | C22: =Orçamento!P423 -> ALVENARIAS E DIVISÓRIAS | D22: =Orçamento!X423 -> 0 | E22: =Orçamento!AA423 -> 0
B23: =Orçamento!O424 -> j. | C23: =Orçamento!P424 -> ALVENARIA AUTO-PORTANTE | D23: =Orçamento!X424 -> 0 | E23: =Orçamento!AA424 -> 0
B24: =Orçamento!O425 -> k. | C24: =Orçamento!P425 -> IMPERMEABILIZAÇÃO | D24: =Orçamento!X425 -> 0 | E24: =Orçamento!AA425 -> 0
B25: =Orçamento!O426 -> l. | C25: =Orçamento!P426 -> ISOLAMENTO TÉRMICO E ACÚSTICO | D25: =Orçamento!X426 -> 0 | E25: =Orçamento!AA426 -> 0
B26: =Orçamento!O427 -> m. | C26: =Orçamento!P427 -> ESTRUTURA DE MADEIRA | D26: =Orçamento!X427 -> 0 | E26: =Orçamento!AA427 -> 0
B27: =Orçamento!O428 -> n. | C27: =Orçamento!P428 -> ESTRUTURAS METÁLICAS | D27: =Orçamento!X428 -> 0 | E27: =Orçamento!AA428 -> 0
B28: =Orçamento!O429 -> o. | C28: =Orçamento!P429 -> COBERTURAS | D28: =Orçamento!X429 -> 0 | E28: =Orçamento!AA429 -> 0
B29: =Orçamento!O430 -> p. | C29: =Orçamento!P430 -> ESQUADRIAS DE MADEIRA | D29: =Orçamento!X430 -> 0 | E29: =Orçamento!AA430 -> 0
B30: =Orçamento!O431 -> q. | C30: =Orçamento!P431 -> ESQUADRIAS METÁLICAS | D30: =Orçamento!X431 -> 0 | E30: =Orçamento!AA431 -> 0
B31: =Orçamento!O432 -> r. | C31: =Orçamento!P432 -> VIDROS | D31: =Orçamento!X432 -> 0 | E31: =Orçamento!AA432 -> 0
B32: =Orçamento!O433 -> s. | C32: =Orçamento!P433 -> REVESTIMENTO DE PAREDE | D32: =Orçamento!X433 -> 0 | E32: =Orçamento!AA433 -> 0
B33: =Orçamento!O434 -> t. | C33: =Orçamento!P434 -> FORROS | D33: =Orçamento!X434 -> 0 | E33: =Orçamento!AA434 -> 0
B34: =Orçamento!O435 -> u. | C34: =Orçamento!P435 -> REVESTIMENTO DE PISO | D34: =Orçamento!X435 -> 0 | E34: =Orçamento!AA435 -> 0
B35: =Orçamento!O436 -> v. | C35: =Orçamento!P436 -> FERRAGENS | D35: =Orçamento!X436 -> 0 | E35: =Orçamento!AA436 -> 0
B36: =Orçamento!O437 -> w. | C36: =Orçamento!P437 -> MARCENARIA | D36: =Orçamento!X437 -> 0 | E36: =Orçamento!AA437 -> 0
B37: =Orçamento!O438 -> x. | C37: =Orçamento!P438 -> ADMINISTRAÇÃO | D37: =Orçamento!X438 -> 0 | E37: =Orçamento!AA438 -> 0
B38: =Orçamento!O439 -> y. | C38: =Orçamento!P439 -> PINTURA | D38: =Orçamento!X439 -> 0 | E38: =Orçamento!AA439 -> 0
B39: =Orçamento!O440 -> z. | C39: =Orçamento!P440 -> DIVERSOS | D39: =Orçamento!X440 -> 0 | E39: =Orçamento!AA440 -> 0
A40: F | B40: TOTAL GERAL DO ORÇAMENTO (R$) C/BDI | D40: =SUM(D14:D39) -> 0 | E40: =SUM(E14:E39) -> 0

Sheet Parc Maior Relev
B3: UNIDADE ESCOLAR | E3: CÓDIGO INEP
B4: =Orçamento!$O$4 -> COLÉGIO ESTADUAL ARTUR DA COSTA E SILVA | E4: =Orçamento!$X$4 -> 52024164
B6: OBRA | E6: CIDADE
B7: =Orçamento!$O$7 -> REFORMA E AMPLIAÇÃO | E7: =Orçamento!$X$7 -> ITAGUARU
B9: CRE | E9: ÁREA TOTAL CONSTRUÍDA (M²)
B10: =Orçamento!$O$10 -> CRE-ITABERAI | E10: =Orçamento!$X$13 -> 1708.42
A12: FILTRO | B12: PARCELA DE MAIOR RELEVÂNCIA
A13: =IF(G14>0,"F","") ->  | B13: CÓDIGO | C13: SERVIÇO | D13: DESCRIÇÃO | E13: UNID | F13: QUANT | G13: PARC. MAIOR RELEV (100%)
A14: =IF(G14>0,"F","") ->  | B14: f. | C14: INSTALAÇÕES ELÉTRICAS | D14: SUBESTAÇÃO | E14: KVA | F14: =SUMIF(Orçamento!$R$396:$R$396,'Parc Maior Relev'!D14,Orçamento!$T$396:$T$396) -> 0 | G14: =F14 -> 0
A15: =IF(SUM(G16:G30)>0,"F","") -> F | B15: CÓDIGO | C15: SERVIÇO | D15: DESCRIÇÃO | E15: UNID | F15: QUANT | G15: PARC. MAIOR RELEV (50%)
A16: =IF(G16>0,"F","") ->  | B16: e. | C16: ESTRUTURA | D16: CONCRETO | E16: M3 | F16: =SUMIF(Orçamento!$R$396:$R$396,'Parc Maior Relev'!D16,Orçamento!$T$396:$T$396) -> 0 | G16: =F16*0.5 -> 0
A17: =IF(G17>0,"F","") ->  | B17: f. | C17: INSTALAÇÕES ELÉTRICAS | D17: INSTALAÇÕES ELÉTRICAS | E17: KVA | F17: =SUMIF(Orçamento!$R$396:$R$396,'Parc Maior Relev'!D17,Orçamento!$T$396:$T$396) -> 0 | G17: =F17*0.5 -> 0
A18: =IF(G18>0,"F","") ->  | B18: o. | C18: COBERTURAS | D18: COBERTURA CERÂMICA | E18: M2 | F18: =SUMIF(Orçamento!$R$396:$R$396,'Parc Maior Relev'!D18,Orçamento!$T$396:$T$396) -> 0 | G18: 0
B19: o. | C19: COBERTURAS | D19: COBERTURA COM TELHA METÁLICA | E19: M2 | F19: =SUMIF(Orçamento!$R$396:$R$396,'Parc Maior Relev'!D19,Orçamento!$T$396:$T$396) -> 0 | G19: 0
B20: s. | C20: REVESTIMENTO DE PAREDE | D20: CHAPISCO | E20: M2 | F20: =SUMIF(Orçamento!$R$396:$R$396,'Parc Maior Relev'!D20,Orçamento!$T$396:$T$396) -> 0 | G20: 0
B21: s. | C21: REVESTIMENTO DE PAREDE | D21: REBOCO | E21: M2 | F21: =SUMIF(Orçamento!$R$396:$R$396,'Parc Maior Relev'!D21,Orçamento!$T$396:$T$396) -> 0 | G21: 0
A22: F | B22: s. | C22: REVESTIMENTO DE PAREDE | D22: REVESTIMENTO CERÂMICO | E22: M2 | F22: 145.8 | G22: 72.9
B23: t. | C23: FORROS | D23: FORRO DE GESSO | E23: M2 | F23: =SUMIF(Orçamento!$R$396:$R$396,'Parc Maior Relev'!D23,Orçamento!$T$396:$T$396) -> 0 | G23: 0
B24: t. | C24: FORROS | D24: FORRO DE PVC | E24: M2 | F24: =SUMIF(Orçamento!$R$396:$R$396,'Parc Maior Relev'!D24,Orçamento!$T$396:$T$396) -> 0 | G24: 0
B25: t. | C25: FORROS | D25: FORRO DE GESSO ACARTONADO | E25: M2 | F25: =SUMIF(Orçamento!$R$396:$R$396,'Parc Maior Relev'!D25,Orçamento!$T$396:$T$396) -> 0 | G25: 0
B26: u. | C26: REVESTIMENTO DE PISO | D26: PISO DE GRANITINA | E26: M2 | F26: =SUMIF(Orçamento!$R$396:$R$396,'Parc Maior Relev'!D26,Orçamento!$T$396:$T$396) -> 0 | G26: 0
B27: u. | C27: REVESTIMENTO DE PISO | D27: PISO LAMINADO | E27: M2 | F27: =SUMIF(Orçamento!$R$396:$R$396,'Parc Maior Relev'!D27,Orçamento!$T$396:$T$396) -> 0 | G27: 0
A28: F | B28: u. | C28: REVESTIMENTO DE PISO | D28: PISO DE CONCRETO | E28: m² | F28: 263.35 | G28: 131.675
B29: u. | C29: REVESTIMENTO DE PISO | D29: PISO CERÂMICO | E29: M2 | F29: =SUMIF(Orçamento!$R$396:$R$396,'Parc Maior Relev'!D29,Orçamento!$T$396:$T$396) -> 0 | G29: 0
B30: y. | C30: PINTURA | D30: PINTURA | E30: M2 | F30: =SUMIF(Orçamento!$R$396:$R$396,'Parc Maior Relev'!D30,Orçamento!$T$396:$T$396) -> 0 | G30: 0
A31: F
A32: F | B32: (*) Para os fins do inciso I dp § 1º do Art. 30 da Lei Federal 8.666/93, são consideradas parcelas de maior relevância técnica as execuções apresentadas
A33: F

Sheet Composições
A3: UNIDADE ESCOLAR | H3: CÓDIGO INEP
A4: =Orçamento!$O$4 -> COLÉGIO ESTADUAL ARTUR DA COSTA E SILVA | H4: =Orçamento!$X$4 -> 52024164
A6: OBRA | H6: CIDADE
A7: =Orçamento!$O$7 -> REFORMA E AMPLIAÇÃO | H7: =Orçamento!$X$7 -> ITAGUARU
A9: CRE | D9: ENDEREÇO | H9: REFERÊNCIA AGETOP
A10: =Orçamento!$O$10 -> CRE-ITABERAI | D10: =Orçamento!$R$10 -> R SEBASTIAO RODRIGUES DA SILVA 807 , CENTRO , CEP:76660-000 | H10: =Orçamento!$S$10 -> ABR/19 | I10: =Orçamento!$T$10 -> DESONERADA
A12: DATA | D12: ÁREA TOTAL CONSTRUÍDA (M²) | H12: REFERÊNCIA SINAPI
A13: =Orçamento!$S$7 -> 2020-07-17 | D13: =Orçamento!$X$13 -> 1708.42 | H13: =Orçamento!$X$10 -> ABR/20 | I13: =Orçamento!$Y$10 -> DESONERADA
A15: COMPOSIÇÕES DE CUSTOS UNITÁRIOS - SEE-GO
A16: 541 | B16: FONTE | C16: CÓDIGO | D16: DESCRIÇÃO | E16: UNIDADE | F16: COEFIC. | G16: CUSTO UNITÁRIO | I16: CUSTO TOTAL (A) + (B) + (C) + (D) + (E)
G17: DESONERADO | H17: NÃO DESONER. | I17: DESONERADO | J17: NÃO DESONER.
B18: COMPOSIÇÃO | C18: COMP 541_SEE | D18: BANCADA DE GRANITO CINZA POLIDO - FORNECIMENTO E INSTALAÇÃO (SINAPI) | E18: M2 | I18: 479.19 | J18: 484.38
B19: SINAPI | C19: 88274 | D19: MARMORISTA/GRANITEIRO COM ENCARGOS COMPLEMENTARES | E19: H | F19: 1.655555556 | G19: 18.19 | H19: 20.38 | I19: 30.11 | J19: 33.74
B20: SINAPI | C20: 88316 | D20: SERVENTE COM ENCARGOS COMPLEMENTARES | E20: H | F20: 1.088888889 | G20: 13.32 | H20: 14.75 | I20: 14.5 | J20: 16.06
B21: MÃO DE OBRA (B) - TOTAL | I21: 44.61 | J21: 49.8
B22: SINAPI_I | C22: 4823 | D22: MASSA PLASTICA PARA MARMORE/GRANITO | E22: KG | F22: 0.5808888889 | G22: 29.78 | H22: 29.78 | I22: 17.3 | J22: 17.3
B23: SINAPI_I | C23: 7568 | D23: BUCHA DE NYLON SEM ABA S10, COM PARAFUSO DE 6,10 X 65 MM EM ACO ZINCADO COM ROSCA SOBERBA, CABECA CHATA E FENDA PHILLIPS | E23: UN | F23: 6.666666667 | G23: 0.36 | H23: 0.36 | I23: 2.4 | J23: 2.4
B24: SINAPI_I | C24: 11795 | D24: GRANITO PARA BANCADA, POLIDO, TIPO ANDORINHA/ QUARTZ/ CASTELO/ CORUMBA OU OUTROS EQUIVALENTES DA REGIAO, E= *2,5* CM | E24: M2 | F24: 1.116666667 | G24: 347.16 | H24: 347.16 | I24: 387.66 | J24: 387.66
B25: SINAPI_I | C25: 37329 | D25: REJUNTE EPOXI BRANCO | E25: KG | F25: 0.039 | G25: 39.87 | H25: 39.87 | I25: 1.55 | J25: 1.55
B26: SINAPI_I | C26: 37591 | D26: SUPORTE MAO-FRANCESA EM ACO, ABAS IGUAIS 40 CM, CAPACIDADE MINIMA 70 KG, BRANCO | E26: UN | F26: 2.222222222 | G26: 11.55 | H26: 11.55 | I26: 25.67 | J26: 25.67
B27: MATERIAL (C) - TOTAL | I27: 434.58 | J27: 434.58
A29: 84 | B29: FONTE | C29: CÓDIGO | D29: DESCRIÇÃO | E29: UNIDADE | F29: COEFIC. | G29: CUSTO UNITÁRIO | I29: CUSTO TOTAL (A) + (B) + (C) + (D) + (E)
G30: DESONERADO | H30: NÃO DESONER. | I30: DESONERADO | J30: NÃO DESONER.
B31: COMPOSIÇÃO | C31: COMP 084_SEE | D31: GUARDA-CORPO COM CORRIMÃO - SEDUC (AGETOP) | E31: M | I31: 206.14 | J31: 211.22
B32: AGETOP_I | C32: 25 | D32: OFICIAL "B" | E32: h | F32: 1.1 | G32: 13.95 | H32: 16.16 | I32: 15.35 | J32: 17.78
B33: AGETOP_I | C33: 8 | D33: AJUDANTE | E33: h | F33: 1.1 | G33: 8.75 | H33: 10.14 | I33: 9.63 | J33: 11.15
B34: MÃO DE OBRA (B) - TOTAL | I34: 24.98 | J34: 28.93
B35: AGETOP_I | C35: 2376 | D35: TUBO INDUSTRIAL 2" CHAPA 13 | E35: Kg | F35: 7.7778 | G35: 5.23 | H35: 5.23 | I35: 40.68 | J35: 40.68
B36: AGETOP_I | C36: 2504 | D36: TUBO INDUSTRIAL D=25 MM CHAPA 13 | E36: Kg | F36: 4.632 | G36: 5.07 | H36: 5.07 | I36: 23.48 | J36: 23.48
B37: AGETOP_I | C37: 2377 | D37: TUBO INDUSTRIAL 40X40 CH.13 | E37: Kg | F37: 6.342 | G37: 5.07 | H37: 5.07 | I37: 32.15 | J37: 32.15
B38: AGETOP_I | C38: 2421 | D38: TUBO INDUSTRIAL 1.1/2" CHAPA 13 | E38: Kg | F38: 1.4862 | G38: 5.07 | H38: 5.07 | I38: 7.54 | J38: 7.54
B39: AGETOP_I | C39: 2417 | D39: MASSA PLASTICA | E39: Kg | F39: 0.2041 | G39: 10.58 | H39: 10.58 | I39: 2.16 | J39: 2.16
B40: AGETOP_I | C40: 2246 | D40: ELETRODO 2.5 OK | E40: Kg | F40: 0.1146 | G40: 8.7 | H40: 8.7 | I40: 1 | J40: 1
B41: AGETOP_I | C41: 1672 | D41: LIXA PARA FERRO ( NÚMERO 100 ) | E41: un | F41: 0.2551 | G41: 2.12 | H41: 2.12 | I41: 0.54 | J41: 0.54
B42: AGETOP_I | C42: 1264 | D42: DISCO DE DESBASTE 7/8" P/ CONC./FERRO (1/4" X 7") | E42: un | F42: 0.051 | G42: 7 | H42: 7 | I42: 0.36 | J42: 0.36
B43: AGETOP_I | C43: 1334 | D43: DISCO DE CORTE DIAM. 5/8"- 10" | E43: un | F43: 0.373 | G43: 5.5 | H43: 5.5 | I43: 2.05 | J43: 2.05
B44: AGETOP_I | C44: 2902 | D44: FABRICAÇÃO / MONTAGEM | E44: un | F44: 1 | G44: 50.44 | H44: 50.44 | I44: 50.44 | J44: 50.44
B45: AGETOP_I | C45: 2150 | D45: CHAPA DE FERRO DOBRADA No.13 | E45: Kg | F45: 0.4352 | G45: 5.28 | H45: 5.28 | I45: 2.3 | J45: 2.3
B46: AGETOP_I | C46: 2719 | D46: CHAPA PERFILADA 3/16" | E46: Kg | F46: 1.098 | G46: 5.04 | H46: 5.04 | I46: 5.53 | J46: 5.53
B47: AGETOP_I | C47: 2436 | D47: ACO CA-25 - 6,3 MM (1/4") - BARRA LISA A-36 | E47: Kg | F47: 0.38125 | G47: 5.13 | H47: 5.13 | I47: 1.96 | J47: 1.96
B48: AGETOP | C48: 261602 | D48: PINT.ESMALTE/ESQUAD.FERRO C/FUNDO ANTICOR. | E48: m2 | F48: 0.78 | G48: 14.07 | H48: 15.51 | I48: 10.97 | J48: 12.1
B49: MATERIAL (C) - TOTAL | I49: 181.16 | J49: 182.29
A51: 24 | B51: FONTE | C51: CÓDIGO | D51: DESCRIÇÃO | E51: UNIDADE | F51: COEFIC. | G51: CUSTO UNITÁRIO | I51: CUSTO TOTAL (A) + (B) + (C) + (D) + (E)
G52: DESONERADO | H52: NÃO DESONER. | I52: DESONERADO | J52: NÃO DESONER.
B53: COMPOSIÇÃO | C53: COMP 024_SEE | D53: SINALIZADOR FOTOLUMINESCENTE PARA EXTINTOR (AGETOP + SINAPI) | E53: UN | G53: - | H53: - | I53: 25.32 | J53: 25.44
B54: AGETOP_I | C54: 5 | D54: SERVENTE | E54: h | F54: 0.09 | G54: 8.75 | H54: 10.14 | I54: 0.79 | J54: 0.91
B55: MÃO DE OBRA (B) - TOTAL | I55: 0.79 | J55: 0.91
B56: AGETOP_I | C56: 3070 | D56: BUCHA DE NYLON S-6 | E56: un | F56: 2 | G56: 0.04 | H56: 0.04 | I56: 0.08 | J56: 0.08
B57: AGETOP_I | C57: 3393 | D57: PARAFUSO P/BUCHA S-6 | E57: un | F57: 2 | G57: 0.08 | H57: 0.08 | I57: 0.16 | J57: 0.16
B58: SINAPI_I | C58: 37556 | D58: PLACA DE SINALIZACAO DE SEGURANCA CONTRA INCENDIO, FOTOLUMINESCENTE, QUADRADA, *20 X 20* CM, EM PVC *2* MM ANTI-CHAMAS (SIMBOLOS, CORES E PICTOGRAMAS CONFORME NBR 13434) | E58: UN | F58: 1 | G58: 24.29 | H58: 24.29 | I58: 24.29 | J58: 24.29
B59: MATERIAL (C) - TOTAL | I59: 24.53 | J59: 24.53
A61: 25 | B61: FONTE | C61: CÓDIGO | D61: DESCRIÇÃO | E61: UNIDADE | F61: COEFIC. | G61: CUSTO UNITÁRIO | I61: CUSTO TOTAL (A) + (B) + (C) + (D) + (E)
G62: DESONERADO | H62: NÃO DESONER. | I62: DESONERADO | J62: NÃO DESONER.
B63: COMPOSIÇÃO | C63: COMP 025_SEE | D63: SINALIZADOR FOTOLUMINESCENTE DE EMERGÊNCIA (AGETOP + SINAPI) | E63: UN | G63: - | H63: - | I63: 25.32 | J63: 25.44
B64: AGETOP_I | C64: 5 | D64: SERVENTE | E64: h | F64: 0.09 | G64: 8.75 | H64: 10.14 | I64: 0.79 | J64: 0.91
B65: MÃO DE OBRA (B) - TOTAL | I65: 0.79 | J65: 0.91
B66: AGETOP_I | C66: 3070 | D66: BUCHA DE NYLON S-6 | E66: un | F66: 2 | G66: 0.04 | H66: 0.04 | I66: 0.08 | J66: 0.08
B67: AGETOP_I | C67: 3393 | D67: PARAFUSO P/BUCHA S-6 | E67: un | F67: 2 | G67: 0.08 | H67: 0.08 | I67: 0.16 | J67: 0.16
B68: SINAPI_I | C68: 37556 | D68: PLACA DE SINALIZACAO DE SEGURANCA CONTRA INCENDIO, FOTOLUMINESCENTE, QUADRADA, *20 X 20* CM, EM PVC *2* MM ANTI-CHAMAS (SIMBOLOS, CORES E PICTOGRAMAS CONFORME NBR 13434) | E68: UN | F68: 1 | G68: 24.29 | H68: 24.29 | I68: 24.29 | J68: 24.29
B69: MATERIAL (C) - TOTAL | I69: 24.53 | J69: 24.53
A71: 277 | B71: FONTE | C71: CÓDIGO | D71: DESCRIÇÃO | E71: UNIDADE | F71: COEFIC. | G71: CUSTO UNITÁRIO | I71: CUSTO TOTAL (A) + (B) + (C) + (D) + (E)
G72: DESONERADO | H72: NÃO DESONER. | I72: DESONERADO | J72: NÃO DESONER.
B73: COMPOSIÇÃO | C73: COMP 277_SEE | D73: MARCAÇÃO NO PISO - 1X1 M PARA EXTINTOR (AGETOP + SINAPI) | E73: M2 | I73: 29.69 | J73: 29.76
B74: AGETOP_I | C74: 5 | D74: SERVENTE | E74: h | F74: 0.0333 | G74: 8.75 | H74: 10.14 | I74: 0.29 | J74: 0.34
B75: MÃO DE OBRA (B) - TOTAL | I75: 0.29 | J75: 0.34
B76: SINAPI_I | C76: 5318 | D76: SOLVENTE DILUENTE A BASE DE AGUARRAS | E76: L | F76: 0.13 | G76: 11.98 | H76: 11.98 | I76: 1.56 | J76: 1.56
B77: SINAPI | C77: 5824 | D77: CAMINHÃO TOCO, PBT 16.000 KG, CARGA ÚTIL MÁX. 10.685 KG, DIST. ENTRE EIXOS 4,8 M, POTÊNCIA 189 CV, INCLUSIVE CARROCERIA FIXA ABERTA DE MADEIRA P/ TRANSPORTE GERAL DE CARGA SECA, DIMEN. APROX. 2,5 X 7,00 X 0,50 M - CHP DIURNO. AF_06/2014 | E77: CHP | F77: 0.0033 | G77: 115.5 | H77: 118.69 | I77: 0.38 | J77: 0.39
B78: SINAPI_I | C78: 7343 | D78: TINTA A BASE DE RESINA ACRILICA, PARA SINALIZACAO HORIZONTAL VIARIA (NBR 11862) | E78: L | F78: 0.6 | G78: 12.82 | H78: 12.82 | I78: 7.69 | J78: 7.69
B79: SINAPI_I | C79: 7348 | D79: TINTA ACRILICA PREMIUM PARA PISO | E79: L | F79: 0.03 | G79: 13.96 | H79: 13.96 | I79: 0.42 | J79: 0.42
B80: SINAPI_I | C80: 25972 | D80: MICROESFERAS DE VIDRO PARA SINALIZACAO HORIZONTAL VIARIA, TIPO I-B (PREMIX) - NBR 16184 | E80: KG | F80: 2.14 | G80: 8.88 | H80: 8.88 | I80: 19 | J80: 19
B81: SINAPI | C81: 95133 | D81: MÁQUINA DEMARCADORA DE FAIXA DE TRÁFEGO À FRIO, AUTOPROPELIDA, POTÊNCIA 38 HP - CHP DIURNO. AF_07/2016 | E81: CHP | F81: 0.0033 | G81: 105.93 | H81: 109.48 | I81: 0.35 | J81: 0.36
B82: MATERIAL (C) - TOTAL | I82: 29.4 | J82: 29.42
A84: 57 | B84: FONTE | C84: CÓDIGO | D84: DESCRIÇÃO | E84: UNIDADE | F84: COEFIC. | G84: CUSTO UNITÁRIO | I84: CUSTO TOTAL (A) + (B) + (C) + (D) + (E)
G85: DESONERADO | H85: NÃO DESONER. | I85: DESONERADO | J85: NÃO DESONER.
B86: COMPOSIÇÃO | C86: COMP 057_SEE | D86: BUCHA DE REDUCAO SOLDAVEL LONGA 85 X 60 mm | E86: UN | I86: 17.6 | J86: 18.27
B87: AGETOP_I | C87: 8 | D87: AJUDANTE | E87: h | F87: 0.185 | G87: 8.75 | H87: 10.14 | I87: 1.62 | J87: 1.88
B88: AGETOP_I | C88: 11 | D88: ENCANADOR | E88: h | F88: 0.185 | G88: 13.95 | H88: 16.16 | I88: 2.58 | J88: 2.99
B89: MÃO DE OBRA (B) - TOTAL | I89: 4.2 | J89: 4.87
B90: SINAPI_I | C90: 817 | D90: BUCHA DE REDUCAO DE PVC, SOLDAVEL, LONGA, COM 85 X 60 MM, PARA AGUA FRIA PREDIAL | E90: UN | F90: 1 | G90: 13.4 | H90: 13.4 | I90: 13.4 | J90: 13.4
B91: MATERIAL (C) - TOTAL | I91: 13.4 | J91: 13.4
